Workbook

Sheet Tasas EG (hidden)
A1: Por Edad Alcanzada | E1: Por Rango de Edad
A2: Edad | B2: Hombre | C2: Mujer | E2: Rango Edad | F2: Hombre | G2: Mujer | I2: Costo Fijo | J2: 21.71
A3: 18 | B3: 0.6807 | C3: 0.6869 | E3: 18 | F3: 0.8816 | G3: 0.9331
A4: 19 | B4: 0.6807 | C4: 0.6869 | E4: 19 | F4: 0.8816 | G4: 0.9331
A5: 20 | B5: 0.6807 | C5: 0.6869 | E5: 20 | F5: 0.8816 | G5: 0.9331
A6: 21 | B6: 0.7521 | C6: 0.7588 | E6: 21 | F6: 0.8816 | G6: 0.9331
A7: 22 | B7: 0.8279 | C7: 0.8191 | E7: 22 | F7: 0.8816 | G7: 0.9331
A8: 23 | B8: 0.8752 | C8: 0.9202 | E8: 23 | F8: 0.8816 | G8: 0.9331
A9: 24 | B9: 0.9652 | C9: 1.0191 | E9: 24 | F9: 0.8816 | G9: 0.9331
A10: 25 | B10: 1.0229 | C10: 1.1403 | E10: 25 | F10: 0.8816 | G10: 0.9331
A11: 26 | B11: 1.0798 | C11: 1.259 | E11: 26 | F11: 1.3358 | G11: 1.6898
A12: 27 | B12: 1.149 | C12: 1.3581 | E12: 27 | F12: 1.3358 | G12: 1.6898
A13: 28 | B13: 1.2733 | C13: 1.5759 | E13: 28 | F13: 1.3358 | G13: 1.6898
A14: 29 | B14: 1.3559 | C14: 1.7631 | E14: 29 | F14: 1.3358 | G14: 1.6898
A15: 30 | B15: 1.4907 | C15: 1.9328 | E15: 30 | F15: 1.3358 | G15: 1.6898
A16: 31 | B16: 1.6509 | C16: 2.1148 | E16: 31 | F16: 2.1985 | G16: 2.8494
A17: 32 | B17: 1.791 | C17: 2.3479 | E17: 32 | F17: 2.1985 | G17: 2.8494
A18: 33 | B18: 2.0184 | C18: 2.6286 | E18: 33 | F18: 2.1985 | G18: 2.8494
A19: 34 | B19: 2.2817 | C19: 2.9479 | E19: 34 | F19: 2.1985 | G19: 2.8494
A20: 35 | B20: 2.5279 | C20: 3.2743 | E20: 35 | F20: 2.1985 | G20: 2.8494
A21: 36 | B21: 2.8379 | C21: 3.619 | E21: 36 | F21: 4.0975 | G21: 4.7094
A22: 37 | B22: 3.1909 | C22: 3.9578 | E22: 37 | F22: 4.0975 | G22: 4.7094
A23: 38 | B23: 3.6936 | C23: 4.409 | E23: 38 | F23: 4.0975 | G23: 4.7094
A24: 39 | B24: 4.2681 | C24: 4.8576 | E24: 39 | F24: 4.0975 | G24: 4.7094
A25: 40 | B25: 4.854 | C25: 5.3274 | E25: 40 | F25: 4.0975 | G25: 4.7094
A26: 41 | B26: 5.42 | C26: 5.8098 | E26: 41 | F26: 7.1564 | G26: 7.3669
A27: 42 | B27: 6.1197 | C27: 6.2852 | E27: 42 | F27: 7.1564 | G27: 7.3669
A28: 43 | B28: 6.705 | C28: 6.8852 | E28: 43 | F28: 7.1564 | G28: 7.3669
A29: 44 | B29: 7.3367 | C29: 7.544 | E29: 44 | F29: 7.1564 | G29: 7.3669
A30: 45 | B30: 8.1112 | C30: 8.304 | E30: 45 | F30: 7.1564 | G30: 7.3669
A31: 46 | B31: 8.9441 | C31: 9.0736 | E31: 46 | F31: 12.1516 | G31: 11.5353
A32: 47 | B32: 9.7557 | C32: 9.8528 | E32: 47 | F32: 12.1516 | G32: 11.5353
A33: 48 | B33: 11.1547 | C33: 10.8674 | E33: 48 | F33: 12.1516 | G33: 11.5353
A34: 49 | B34: 12.6162 | C34: 11.8853 | E34: 49 | F34: 12.1516 | G34: 11.5353
A35: 50 | B35: 14.0702 | C35: 12.909 | E35: 50 | F35: 12.1516 | G35: 11.5353
A36: 51 | B36: 15.45 | C36: 13.8347 | E36: 51 | F36: 20.088 | G36: 16.9536
A37: 52 | B37: 16.9102 | C37: 14.9633 | E37: 52 | F37: 20.088 | G37: 16.9536
A38: 53 | B38: 18.8914 | C38: 16.1609 | E38: 53 | F38: 20.088 | G38: 16.9536
A39: 54 | B39: 20.7297 | C39: 17.2766 | E39: 54 | F39: 20.088 | G39: 16.9536
A40: 55 | B40: 22.6597 | C40: 18.7041 | E40: 55 | F40: 20.088 | G40: 16.9536
A41: 56 | B41: 24.8402 | C41: 20.0759 | E41: 56 | F41: 31.3878 | G41: 24.1274
A42: 57 | B42: 27.0153 | C42: 21.4193 | E42: 57 | F42: 31.3878 | G42: 24.1274
A43: 58 | B43: 29.6122 | C43: 22.8862 | E43: 58 | F43: 31.3878 | G43: 24.1274
A44: 59 | B44: 32.2684 | C44: 24.6002 | E44: 59 | F44: 31.3878 | G44: 24.1274
A45: 60 | B45: 35.0419 | C45: 26.5141 | E45: 60 | F45: 31.3878 | G45: 24.1274
A46: 61 | B46: 37.87 | C46: 28.1862 | E46: 61 | F46: 45.9711 | G46: 31.8526
A47: 62 | B47: 40.5447 | C47: 29.9434 | E47: 62 | F47: 45.9711 | G47: 31.8526
A48: 63 | B48: 43.7909 | C48: 31.2326 | E48: 63 | F48: 45.9711 | G48: 31.8526
A49: 64 | B49: 47.1188 | C49: 32.469 | E49: 64 | F49: 45.9711 | G49: 31.8526
A50: 65 | B50: 50.4476 | C50: 33.4334 | E50: 65 | F50: 45.9711 | G50: 31.8526
A51: 66 | B51: 53.6693 | C51: 34.5822 | E51: 66 | F51: 62.7876 | G51: 38.5466
A52: 67 | B52: 56.7979 | C52: 35.6709 | E52: 67 | F52: 62.7876 | G52: 38.5466
A53: 68 | B53: 60.399 | C53: 37.3686 | E53: 68 | F53: 62.7876 | G53: 38.5466
A54: 69 | B54: 63.9243 | C54: 39.0536 | E54: 69 | F54: 62.7876 | G54: 38.5466
A55: 70 | B55: 67.8629 | C55: 40.9088 | E55: 70 | F55: 62.7876 | G55: 38.5466

Sheet Asistencia Funeraria (hidden)
D1: Asistencia Funeraria
F5: drojas | G5: CUMPLI02 | H5: Comercial_13122017
A6: Datos Generales
A8: Solicitante: | C8: <Nombre del Solicitante> | F8: Corredor: | G8: <Corredor del Solicitante>
A10: Edad: | C10: 45 | F10: Fecha: | G10: =TODAY() -> 2018-07-26
A12: Plan: | C12: Asistencia Funeraria Nacional Individual | F12: Esquema: | G12: Individual
A14: Cantidad de Titulares: | C14: 10
A16: Datos de la Cotización
A17: COBERTURAS | G17: PRIMA
A18: =C12 -> Asistencia Funeraria Nacional Individual | G18: =Tabla_AF[[#All],[Prima Anual Fija]] -> 9.76
F19: Descuento | G19: =-IF(G12="Colectiva", IF(C$14<=4,0,IF(C$14<=20,0.05,IF(C$14<=50,0.1,IF(C$14<=100,0.15,0.2)))),0)*G18 -> 0
E20: PROPUESTA DEBE CANCELARSE EN ÚNICO PAGO AL CONTADO | F20: Impuestos (5%) | G20: =SUM(G18:G19)*0.05 -> 0.488
D21: =ROUND(G21,2)*C$14 -> 102.5 | F21: Prima Anual con Impuestos | G21: =SUM(G18:G20) -> 10.248
D23: =D21/12 -> 8.541666667 | F23: Prima Mensual con Impuestos (10 Pagos) | G23: =G21/10 -> 1.0248
I24: 52.94
J26: 9.76
N61: 23 | O61: 25 | P61: 50

Sheet Enfermedades Graves (hidden)
E1: Enfermedades Graves
I5: drojas | J5: CUMPLI02 | K5: Comercial_07112017
A6: Datos Generales
A8: Solicitante: | C8: <Nombre del Solicitante> | G8: Ocupación: | H8: <Ocupación del Solicitante>
A10: Esquema de Tarifa: | C10: Rango de Edad | E10: =IF(C10="Rango de Edad", IF(C12<26, "18 - 25 AÑOS", IF(C12<31, "26 - 30 AÑOS", IF(C12<36, "31 - 35 AÑOS", IF(C12<41, "36 - 40 AÑOS", IF(C12<46, "41 - 45 AÑOS", IF(C12<51, "46 - 50 AÑOS", IF(C12<56, "51 - 55 AÑOS", IF(C12<61, "56 - 60 AÑOS", IF(C12<66, "61 - 65 AÑOS", "66 - 70 AÑOS"))))))))),"") -> 41 - 45 AÑOS | G10: Corredor: | H10: <Corredor del Solicitante>
A12: Edad: | C12: 45 | G12: Fecha: | H12: =TODAY() -> 2018-07-26
A14: Genero: | C14: M | F14: Recargo por Sobremortalidad | H14: 0.5
A16: Datos de la Cotización
A17: COBERTURAS | H17: SUMA ASEGURADA | K17: PRIMA
A18: Enfermedades Graves | H18: 50000 | K18: =ROUND((IF(C10="Edad Alcanzada",VLOOKUP(C12,'Tasas EG'!A$3:C$55,IF(C14="M",2,3),FALSE), VLOOKUP(C12,'Tasas EG'!E$3:G$55,IF(C14="M",2,3),FALSE))*(1+$H$14)*H18/1000),2)+'Tasas EG'!J2 -> 558.44
J19: Impuestos (5%) | K19: =K18*0.05 -> 27.922
J20: Prima Anual con Impuestos | K20: =SUM(K$18:K$19) -> 586.362 | T20: 49 | U20: 50 | V20: 12.5
A21: Esta cotización no representa una garantía de emisión de seguro de Enfermedades Graves y tiene una validez de 30 días
J23: Prima Semestral con Impuestos | K23: =K20/2 -> 293.181
J24: Prima Trimestral con Impuestos | K24: =K20/4 -> 146.5905
J25: Prima Mensual con Impuestos | K25: =K20/12 -> 48.8635
L26: 2.2 | M26: 0.25 | N26: 0 | O26: 0.5 | P26: 0.15 | Q26: 0.15 | R26: 0.15 | S26: 4 | T26: 49 | U26: 50 | V26: 50 | W26: 0.5 | X26: 0.25

Sheet Tasa AP Familiar (hidden)
B1: =+'AP Familiar'!I16 -> 100000 | C1: =+VLOOKUP(B1,$J$2:$K$6,2,FALSE) -> 4
J2: 25000 | K2: 2
C3: 25 | D3: 50 | E3: 100 | F3: 150 | G3: 200 | J3: 50000 | K3: 3
B4: Asegurado y Cónyuge | C4: 80.81 | D4: 118.16 | E4: 192.87 | F4: 267.57 | G4: 342.28 | J4: 100000 | K4: 4
B5: Asegurado e Hijos | C5: 68.88 | D5: 94.65 | E5: 146.19 | F5: 197.73 | G5: 249.28 | J5: 150000 | K5: 5
B6: Asegurado Cónyuge e Hijos | C6: 109.28 | D6: 153.73 | E6: 242.63 | F6: 331.52 | G6: 420.42 | J6: 200000 | K6: 6

Sheet AP Familiar (hidden)
E1: Accidentes Personales Familiar
H5: drojas | I5: CUMPLI02 | J5: 28082017v8 | K5: Comercial_07112017
A6: Datos Generales
A8: Solicitante: | C8: <Nombre del Solicitante> | G8: Corredor: | H8: <Corredor del Solicitante>
A10: Edad del Solicitante: | C10: 50 | G10: Fecha: | H10: =TODAY() -> 2018-07-26
A12: Plan: | C12: Asegurado Cónyuge e Hijos
A14: Datos de la Cotización
A15: COBERTURAS | H15: DEDUCIBLE | I15: SUMA ASEGURADA
A16: Muerte Accidental | I16: 100000
A17: Homicidio Culposo | I17: =+I16 -> 100000
A18: Homicidio Doloso | I18: =+I17 -> 100000
A19: Adelanto por Desmembramiento por Accidente | I19: 100000
A20: Adelanto por ITP por Accidente | I20: 100000
A21: Adelanto por Gasto Funerario | I21: 3000
A22: Gastos Médicos por Accidente | H22: 75 | I22: 3000
A23: Renta diaria por Hospitalización por Accidente | H23: 2 días | I23: 100
A24: Asistencia Médica Móvil (AMM) | I24: Incluido
I25: Prima Anual sin Impuestos | J25: =+IF(OR(C10<18,C10>65),"",VLOOKUP($C$12,'Tasa AP Familiar'!$B$4:$G$6,'Tasa AP Familiar'!$C$1,FALSE)) -> 242.63
A26: Observaciones | I26: Impuestos (5%) | J26: =IF(J25="","",ROUND(J25*0.05,2)) -> 12.13
A27: =+IF(OR(C12='Tasa AP Familiar'!$B$5,C12='Tasa AP Familiar'!$B$6),"La Suma Asegurada para los hijos corresponde al 30% de la Suma Asegurada del Asegurado Titular. La cobertura Adelanto por ITP por Accidente, no esta incluida para los hijos."&" Las coberturas de Adelanto por Gasto Funerario, Gastos Médicos por Accidente, Renta Diaria por Hospitalización por Accidente y Asistencia Médica Móvil, no sufren alteración.","") -> La Suma Asegurada para los hijos corresponde al 30% de la Suma Asegurada del Asegurado Titular. La cobertura Adelanto por ITP por Accidente, no esta incluida para los hijos. Las coberturas de Adelanto por Gasto Funerario, Gastos Médicos por Accidente, Renta Diaria por Hospitalización por Accidente y Asistencia Médica Móvil, no sufren alteración. | I27: Prima Anual con Impuestos | J27: =IF(J25="","",SUM(J25:J26)) -> 254.76 | S27: 49 | T27: 50 | U27: 12.5
I29: Prima Semestral con Impuestos | J29: =ROUND(J27/2,2) -> 127.38
I30: Prima Trimestral con Impuestos | J30: =ROUND(J27/4,2) -> 63.69
I31: Prima Mensual con Impuestos | J31: =ROUND(J27/12,2) -> 21.23
A33: Esta cotización no representa una garantía de emisión de seguro de AP Familiar y tiene una validez de 30 días
K35: 2.2 | L35: 0.25 | M35: 0 | N35: 0.5 | O35: 0.15 | P35: 0.15 | Q35: 0.15 | R35: 4 | S35: 49 | T35: 50 | U35: 50 | V35: 0.5 | W35: 0.25

Sheet AP Individual
E1: Accidentes Personales - Plan Individual
J5: ahill | K5: VIDA05 | L5: Comercial_13122017
A6: Datos Generales
A8: Solicitante: | C8: <Nombre del Solicitante> | G8: Ocupación: | I8: <Ocupación del Solicitante>
A10: Días de Cobertura: | C10: 365 | G10: Corredor: | I10: <Corredor del Solicitante>
A12: Edad: | C12: 20 | G12: Fecha: | I12: =TODAY() -> 2018-07-26
A14: Clasificación: | C14: C
A16: Datos de la Cotización
A17: COBERTURAS | H17: SUMA ASEGURADA | J17: DEDUCIBLE | K17: TASA | L17: PRIMA
A18: Muerte Accidental | H18: 90000 | K18: =IF(H$18=0,"",Calculador!$I$8) -> 2.2 | L18: =IF(ISERROR(H$18*K$18/1000), 0, H$18*K$18/1000) -> 198
A19: Adelanto por Desmembramiento por Accidente | H19: incluido | L19: 0
A20: Adelanto por Incapacidad Total y Permanente por Accidente | H20: incluido | L20: 0
A21: Muerte en Transporte Público | H21: incluido | L21: 0
A22: Homicidio Culposo | H22: incluido | L22: 0
A23: Adelanto por Gastos Funerarios | H23: =CONCATENATE("Hasta B/.", IF(H$18*0.2>3000, " 3,000", H$18*0.2), ".00", " (incluido)") -> Hasta B/. 3,000.00 (incluido) | L23: 0
A24: Beneficio de Homicidio Doloso | K24: =IF(H$24=0, "", Calculador!$I$9) ->  | L24: =IF(ISERROR(H$24*K24/1000), "", H$24*K24/1000) -> 
A25: Gastos Médicos por Accidente | J25: =IF(AND(H$25>0, H$25<=1000), 25, IF(AND(H$25>=1500, H$25<=2500),50, IF(H$25=0,"",100))) ->  | L25: =IF(H$25=0, "", Calculador!$I$10) -> 
A26: Muerte Accidental en Avión Privado | K26: =IF(H$26=0, "", Calculador!$I$11) ->  | L26: =IF(ISERROR(H$26*K26/1000),"",H$26*K26/1000) -> 
A27: Muerte en Accidente de Tránsito | K27: =IF(H$27=0, "", Calculador!I12) ->  | L27: =IF(ISERROR(H$27*K$27/1000),"",H$27*K$27/1000) -> 
A28: Muerte como Conductor en Accidente de Tránsito | K28: =IF(H$28=0, "", Calculador!I13) ->  | L28: =IF(ISERROR(H$28*K$28/1000),"",H$28*K$28/1000) -> 
A29: Muerte en Cajero Automático | K29: =IF(H$29=0, "", Calculador!I14) ->  | L29: =IF(ISERROR(H$29*K$29/1000),"",H$29*K$29/1000) -> 
A30: Renta Diaria por Incapacidad Temporal por Accidente | J30: =IF(H$30>0, "5 días", "") ->  | K30: =IF(H$30=0, "", Calculador!I15) ->  | L30: =IF(ISERROR(H$30*K$30/1000),"",H$30*K$30) -> 
A31: Renta Diaria por Hospitalización por Accidente | J31: =IF(H$31>0, "3 días", "") ->  | L31: =IF(H$31=0, "", Calculador!I16) -> 
A32: Renta Diaria por Hospitalización en Cuidados Intensivos por Accidente | J32: =IF(H$32>0, "3 días", "") ->  | L32: =IF(H$31=0, "", Calculador!I17) -> 
A33: Renta Diaria por Hospitalización ambos cónyuges por Accidente | J33: =IF(H$33>0, "3 días", "") ->  | L33: =IF(H$31=0, "", Calculador!I18) -> 
A34: Renta Anual al cónyuge en caso de Muerte Accidental | K34: =IF(H$34=0, "", Calculador!I19) ->  | L34: =IF(ISERROR(H$34*K$34/1000),"",H$34*K$34/1000) -> 
A35: Renta Anual por escolaridad en caso de Muerte Accidental | K35: =IF(H$35=0, "", Calculador!I20) ->  | L35: =IF(ISERROR(H$35*K$35/1000),"",H$35*K$35/1000) -> 
A36: Servicio de Asistencia Médica Móvil | L36: =IF(OR(H$36=0, H$36 = "No"), "", Calculador!I21) -> 
A37: Servicio de Orientación Médica | L37: =IF(OR(H$37=0, H$37 = "No"), "", Calculador!I22) -> 
A38: Servicio de Emergencia Odontológica Completa Familiar | L38: =IF(OR(H$38=0, H$38 = "No"), "", Calculador!I23) -> 
A39: Asistencia Funeraria Nacional Familiar | L39: =IF(OR(H$39=0, H$39 = "No"), "", Calculador!I24) -> 
K40: Sub-Total | L40: =SUM(L$18:L$39) -> 198
B41: Esta cotización no representa una garantía de emisión de seguro de Accidentes Personales y tiene una validez de 30 días | K41: Descuento | L41: =-IF(C$10 = 15, 0.85, IF(C$10=21, 0.8, IF(C$10=30, 0.7, IF(C$10=60, 0.6, IF(C$10=90, 0.42, IF(C$10=180, 0.37, IF(C$10=210,0.3, IF(C$10=240,0.2, IF(C$10=270,0.12, 0)))))))))*L$40 -> 0
K42: Impuestos (5%) | L42: =SUM(L$40:L$41)*0.05 -> 9.9
G43: Prima Mensual con Impuestos (10 Pagos) | H43: =IF(OR(L$43<25, C$10 < 365), 0, L$43/10) -> 20.79 | K43: Prima Anual con Impuestos | L43: =SUM(L$40:L$42) -> 207.9 | V43: 50 | W43: 12.5
M44: 2.2 | N44: 0.25 | O44: 0 | P44: 0.5 | Q44: 0.15 | R44: 0.15 | S44: 0.15 | T44: 4 | V44: 50 | W44: 25 | X44: 0.5 | Y44: 0.25
M45: 1 | N45: 0.25 | O45: 0 | P45: 0.5 | Q45: 0.15 | R45: 0.15 | S45: 0.15 | T45: 2.5 | X45: 0.5 | Y45: 0.25 | Z45: 1.98 | AA45: 6.6 | AB45: 4.03 | AC45: 9.76
U46: 23 | V46: 25 | W46: 50

Sheet AP Colectivo
D1: Accidentes Personales - Plan Colectivo
G5: ahill | H5: VIDA05 | I5: Comercial_13122017
A6: Datos Generales
A8: Solicitante: | C8: <Nombre del Solicitante> | F8: Ocupación: | G8: <Ocupación del Solicitante>
A10: Edad Promedio: | C10: 40 | F10: Corredor: | G10: <Corredor del Solicitante>
A12: Clasificación: | C12: B | F12: Fecha: | G12: =TODAY() -> 2018-07-26
A14: Cantidad de Asegurados: | C14: 50 | F14: Días de Cobertura: | G14: 365
A16: Datos de la Cotización
A17: COBERTURAS | F17: SUMA ASEGURADA | G17: DEDUCIBLE | H17: TASA | I17: PRIMA
A18: Muerte Accidental | F18: 25000 | H18: =IF(F$18=0, "",Calculador!Q8) -> 1.6 | I18: =IF(ISERROR(F$18*H$18/1000), 0, F$18*H$18/1000) -> 40
A19: Adelanto por Desmembramiento por Accidente | F19: incluido | I19: 0
A20: Adelanto por Incapacidad Total y Permanente por Accidente | F20: incluido | I20: 0
A21: Homicidio Culposo | F21: incluido | I21: 0
A22: Adelanto por Gastos Funerarios | F22: =CONCATENATE("Hasta B/.", IF(F$18*0.2>3000, 3000, F$18*0.2), ".00", " (incluido)") -> Hasta B/.3000.00 (incluido) | I22: 0
A23: Beneficio de Homicidio Doloso | H23: =IF(F$23=0, "", Calculador!$Q$9) ->  | I23: =IF(ISERROR(F$23*H23/1000), "", F$23*H23/1000) -> 
A24: Muerte en Transporte Público | H24: =IF(F$24=0, "",Calculador!Q10) ->  | I24: =IF(ISERROR(F$24*H24/1000), "", F$24*H24/1000) -> 
A25: Gastos Médicos por Accidente | G25: =IF(AND(F$25>0, F$25<=1000), 25, IF(AND(F$25>=1500, F$25<=2500),50, IF(F$25=0,"",100))) ->  | I25: =IF(F$25=0, "", Calculador!Q11) -> 
A26: Renta Diaria por Incapacidad Temporal por Accidente | G26: =IF(F$26>0, "5 días", "") ->  | H26: =IF(F$26=0, "", Calculador!Q12) ->  | I26: =IF(ISERROR(F$26*H26), "", F$26*H26) -> 
A27: Renta Diaria por Hospitalización por Accidente | G27: =IF(F$27>0, "3 días", "") ->  | I27: =IF(F$27=0, "", Calculador!Q13) -> 
A28: Servicio de Asistencia Médica Móvil | I28: =IF(OR(F28=0,F28 = "No"), "", Calculador!Q14) -> 
A29: Servicio de Orientación Médica | I29: =IF(OR(F$29=0, F$29 = "No"), "", Calculador!Q15) -> 
A30: Servicio de Emergencia Odontológica Completa Familiar | I30: =IF(OR(F$30=0, F$30 = "No"), "", Calculador!Q16) -> 
A31: Asistencia Funeraria Nacional Familiar | I31: =IF(OR(F$31=0, F$31 = "No"), "", Calculador!Q17) -> 
H32: Sub-Total | I32: =SUM(I$18:I$31) -> 40
B33: Esta cotización no representa una garantía de emisión de seguro de Accidentes Personales y tiene una validez de 30 días | H33: Descuento | I33: =-((IF(OR(C$14<=9,G$14<365),0,IF(C$14<=15,0.1,IF(C$14<=20,0.13,IF(C$14<=29,0.15,IF(C$14<=59,0.2,IF(C$14<=99,0.25,IF(C$14<=249,0.3,0.35))))))))+IF(G$14=15,0.85,IF(G$14=21,0.8,IF(G$14=30,0.7,IF(G$14=60,0.6,IF(G$14=90,0.42,IF(G$14=180,0.37,IF(G$14=210,0.3,IF(G$14=240,0.2,IF(G$14=270,0.12,0))))))))))*(I32-SUM(I28:I31))-IF(C$14<=4,0,IF(C$14<=20,0.05,IF(C$14<=50,0.1,IF(C$14<=100,0.15,0.2))))*SUM(I31:I31) -> -8
H34: Impuestos (5%) | I34: =SUM(I$32:I$33)*0.05 -> 1.6
D35: Prima Anual del Colectivo con Impuestos | E35: =ROUND(I$35,2)*C$14 -> 1680 | H35: Prima Anual por Persona con Impuestos | I35: =SUM(I$32:I$34) -> 33.6
D37: Prima Mensual del Colectivo con Impuestos (12 Pagos) | E37: =IF(OR(E$35<25, G$14 < 365), 0, E$35/12) -> 140 | H37: Prima Mensual por Persona con Impuestos | I37: =IF(OR(E$35<25, G$14 < 365), 0, I$35/12) -> 2.8
J38: 2.2 | K38: 0.25 | M38: 93.5 | O38: 23
P73: 23 | Q73: 25 | R73: 50

Sheet AP PTA (Asiento)
D1: Accidentes Personales - PTA (Asiento)
H5: drojas | I5: CUMPLI02 | J5: Comercial_13122017
A6: Datos Generales
Q7: Transporte Público Uber
A8: Solicitante: | C8: <Nombre del Solicitante> | F8: Vehiculo: | G8: Transporte Público Provincial | Q8: Transporte Público Provincial
Q9: Transporte Público Ruta Interna
A10: Cantidad de Pasajeros: | C10: 15 | D10: * sin considerar el conductor | F10: Corredor: | G10: <Corredor del Solicitante> | Q10: Transporte Público Vehiculo Modificado
Q11: Transporte Público Taxi Rural
A12: Cantidad de Vehiculos: | C12: 1 | F12: Fecha: | G12: =TODAY() -> 2018-07-26 | Q12: Transporte de Empleados
Q13: Transporte Colegial
A14: Datos de la Cotización - Pasajeros | Q14: Transporte de Turismo
A15: COBERTURAS | F15: SUMA ASEGURADA | H15: DEDUCIBLE | I15: TASA | J15: PRIMA | Q15: Transporte Comercial de Carga
A16: Muerte Accidental | F16: 15000 | I16: =IF(F$16=0, "",Calculador!$AA$8*D$22) -> 0.45 | J16: =IF(ISERROR(F$16*I$16/1000), 0, F$16*I$16/1000) -> 6.75 | Q16: Mensajería - Motos
A17: Adelanto por Desmembramiento por Accidente | F17: incluido | J17: 0
A18: Adelanto por Incapacidad Total y Permanente por Accidente | F18: incluido | J18: 0
A19: Gastos Médicos por Accidente | F19: 0 | H19: =IF(AND(F$19>0, F$19<=1000), 25, IF(AND(F$19>=1500, F$19<=2500),50, IF(F$19=0,"",100))) ->  | J19: =IF(F$19=0, "", Calculador!AA9*D$22) -> 
A20: Renta Diaria por Incapacidad Temporal por Accidente | H20: =IF(F$20>0, "3 días", "") ->  | I20: =IF(F$20=0, "",Calculador!AA10* D$22) ->  | J20: =IF(ISERROR(F$20*I$20/1000),"",F$20*I$20) -> 
I21: Sub-Total | J21: =SUM(J$16:J$20) -> 6.75
C22: Factor de Exposición del Riesgo | D22: =IF(G$8="Transporte Público Provincial", 0.45, IF(G$8="Transporte Público Ruta Interna", 0.4, IF(G$8="Transporte Público Vehiculo Modificado", 0.35, IF(G$8="Transporte Público Taxi Rural", 0.95, IF(G$8="Transporte de Empleados", 0.5, IF(G$8="Transporte de Turismo", 0.5, IF(G$8="Transporte Colegial", 0.4, IF(G$8="Transporte Comercial de Carga", 0.68, IF(G$8="Transporte Público Uber", 1.1, 2.06))))))))) -> 0.45 | I22: Descuento | J22: =-IF(C$10*C$12<=9,0,IF(C$10*C$12<=15,0.1,IF(C$10*C$12<=20,0.13,IF(C$10*C$12<=29,0.15,IF(C$10*C$12<=59,0.2,IF(C$10*C$12<=99,0.25,IF(C$10*C$12<=249,0.3,0.35)))))))*J$21 -> -0.675
I23: Impuestos (5%) | J23: =SUM(J$21:J$22)*0.05 -> 0.30375
I24: Prima Anual por Pasajero con Impuestos | J24: =SUM(J$21:J$23) -> 6.37875
A26: Datos de la Cotización - Conductor
A27: COBERTURAS | F27: SUMA ASEGURADA | H27: DEDUCIBLE | I27: TASA | J27: PRIMA
A28: Muerte Accidental | F28: 20000 | I28: =IF(F$28=0, "",Calculador!$AA$12*D$22) -> 0.72 | J28: =IF(ISERROR(F$28*I$28/1000), 0, F$28*I$28/1000) -> 14.4
A29: Adelanto por Desmembramiento por Accidente | F29: incluido | J29: 0
A30: Adelanto por Incapacidad Total y Permanente por Accidente | F30: incluido | J30: 0
A31: Gastos Médicos por Accidente | F31: 0 | H31: =IF(AND(F$31>0, F$31<=1000), 25, IF(AND(F$31>=1500, F$31<=2500),50, IF(F$31=0,"",100))) ->  | J31: =IF(F$31=0, "", Calculador!$AA$13*D$22) -> 
A32: Renta Diaria por Incapacidad Temporal por Accidente | H32: =IF(F$32>0, "3 días", "") ->  | I32: =IF(F$32=0, "",Calculador!$AA$14*D$22) ->  | J32: =IF(ISERROR(F$32*I$32/1000),"",F$32*I$32) -> 
I33: Sub-Total | J33: =SUM(J$28:J$32) -> 14.4
A34: Esta cotización no representa una garantía de emisión de seguro de Accidentes Personales y tiene una validez de 30 días | I34: Impuestos (5%) | J34: =SUM(J$33:J$33)*0.05 -> 0.72
I35: Prima Anual Conductor con Impuestos | J35: =SUM(J$33:J$34) -> 15.12
D36: Prima Anual Total con Impuestos | E36: =IF(G$8<>"Mensajería - Motos", (J$35*C$12)+ (C$10*C$12*J$24), J$35) -> 110.80125

Sheet AP Escolar
D1: Accidentes Personales - Plan Escolar
G5: drojas | H5: CUMPLI02 | I5: Comercial_13122017
A6: Datos Generales
A8: Colegio: | C8: <Nombre del Colegio Solicitante> | F8: Corredor: | G8: <Corredor del Solicitante>
A10: Cantidad de Estudiantes: | C10: 100 | F10: Cantidad de Administrativos: | G10: 5
A12: Cantidad de Profesores: | C12: 11 | F12: Fecha: | G12: =TODAY() -> 2018-07-26
A14: Datos de la Cotización
A15: COBERTURAS | F15: SUMA ASEGURADA | G15: DEDUCIBLE | H15: TASA | I15: PRIMA
A16: Muerte Accidental | F16: 2000 | H16: =IF(F$16=0, "",Calculador!G31*E$22) -> 0.22 | I16: =IF(ISERROR(F$16*H$16/1000), 0, F$16*H$16/1000) -> 0.44
A17: Adelanto por Gastos Funerarios | F17: =CONCATENATE("Hasta B/.", IF(F$16*0.2>3000, 3000, F$16*0.2), ".00", " (incluido)") -> Hasta B/.400.00 (incluido) | I17: 0
A18: Desmembramiento por Accidente | H18: =IF(F$18=0, "",Calculador!G32*E$22) ->  | I18: =IF(ISERROR(F$18*H$18/1000), "", F$18*H$18/1000) -> 
A19: Gastos Médicos por Accidente | F19: 500 | G19: =IF(AND(F$19>0, F$19<=1000), 25, IF(AND(F$19>=1500, F$19<=2500),50, IF(F$19=0,"",100))) -> 25 | I19: =IF(F$19=0, "", Calculador!G33*E$22) -> 3.28
A20: Servicio de Asistencia Médica Móvil | I20: =IF(OR(F$20=0, F$20 = "No"), "", Calculador!G34) -> 
H21: Sub-Total | I21: =SUM(I$16:I$20) -> 3.72
D22: Factor de Exposición del Riesgo | E22: 0.4 | H22: Descuento | I22: =-IF((C$10+C$12+G$10)<=20, 0, IF((C$10+C$12+G$10)<=50, 0.05, IF((C$10+C$12+G$10)<=70, 0.06, IF((C$10+C$12+G$10)<=100, 0.07, IF((C$10+C$12+G$10)<=249, 0.08, IF((C$10+C$12+G$10)<=499, 0.1, IF((C$10+C$12+G$10)<=749, 0.2, IF((C$10+C$12+G$10)<=999, 0.15, IF((C$10+C$12+G$10)<=4999, 0.1, 0.1)))))))))*I$21 -> -0.2976
H23: Impuestos (5%) | I23: =SUM(I$21:I$22)*0.05 -> 0.17112
D24: Prima Periodo Escolar del Colectivo con Impuestos | E24: =I$24*(C$10+C$12+G$10) -> 416.84832 | H24: Prima Periodo Escolar por Persona con Impuestos | I24: =SUM(I$21:I$23) -> 3.59352
J30: 2.2 | K30: 0.3 | L30: 0.44 | M30: 46.5
P61: 23 | Q61: 25 | R61: 50

Sheet Crucero (hidden)
D1: Accidentes Personales - Crucero
G5: drojas | H5: CUMPLI02 | I5: Comercial_07112017
A6: Datos Generales
A8: Solicitante: | C8: <Nombre del Solicitante> | F8: Línea de Crucero: | G8: <Linea del Crucero a Utilizar>
A10: Edad: | C10: 25 | F10: Corredor: | G10: <Corredor del Solicitante>
A12: Días de Cobertura | C12: 3 | F12: Fecha: | G12: =TODAY() -> 2018-07-26
A14: Datos de la Cotización
A15: COBERTURAS | F15: SUMA ASEGURADA | G15: DEDUCIBLE | H15: TASA | I15: PRIMA
A16: Muerte Accidental | F16: 250000 | H16: =IF(F$16=0, "",Calculador!AJ8*E$21) -> 0.165 | I16: =IF(ISERROR(F$16*H$16/1000), 0, F$16*H$16/1000) -> 41.25
A17: Adelanto por Desmembramiento por Accidente | F17: incluido | I17: 0
A18: Adelanto por Incapacidad Total y Permanente por Accidente | F18: incluido | I18: 0
A19: Gastos Médicos por Accidente | G19: =IF(AND(F$19>0, F$19<=1000), 25, IF(AND(F$19>=1500, F$19<=2500),50, IF(F$19=0,"",100))) ->  | I19: =IF(F$19=0, "",Calculador!AJ9*E$21) -> 
H20: Sub-Total | I20: =SUM(I$16:I$19) -> 41.25
D21: Factor de Exposición del Riesgo | E21: =IF(C$12=30, 0.4, IF(C$12=24,0.365, IF(C$12=16, 0.335, IF(C$12=14, 0.305, IF(C$12=8, 0.22, IF(C$12=5, 0.19, IF(C$12=3, 0.165, 0.5))))))) -> 0.165 | H21: Impuestos (5%) | I21: =SUM(I$20:I$20)*0.05 -> 2.0625
H22: Prima Total con Impuestos | I22: =SUM(I$20:I$21) -> 43.3125
K24: 243.75
R59: 23 | S59: 25 | T59: 50

Sheet AP Viajero
D1: Accidentes Personales - Viajero
F5: drojas | G5: CUMPLI02 | H5: Comercial_13122017
A6: Datos Generales
A8: Solicitante: | C8: <Nombre del Solicitante> | F8: Corredor: | G8: <Corredor del Solicitante>
A10: Edad: | C10: 30 | F10: Suma Asegurada: | G10: 150000
A12: Días de Cobertura | C12: 5 | F12: Fecha: | G12: =TODAY() -> 2018-07-26
A14: Datos de la Cotización
A15: COBERTURAS | F15: SUMA ASEGURADA | G15: DEDUCIBLE
A16: Muerte Accidental | F16: =G$10 -> 150000
A17: Adelanto por Desmembramiento por Accidente | F17: incluido
A18: Adelanto por Incapacidad Total y Permanente por Accidente | F18: incluido
A19: Gastos Médicos por Accidente | F19: =+G10*10% -> 15000 | G19: =IF(AND(F$19>0, F$19<=1000), 25, IF(AND(F$19>=1500, F$19<=2500),50, IF(F$19=0,"",100))) -> 100
C21: PROPUESTA DEBE CANCELARSE EN ÚNICO PAGO AL CONTADO | F21: Prima Total con Impuestos | G21: =Calculador!$Q$34 -> 9.16
I22: 14.59
N58: 23 | O58: 25 | P58: 50

Sheet Colectivo de Vida
E1: Colectivo de Vida - Grupo
I5: drojas | J5: CUMPLI02 | K5: Comercial_13122017 | AA5: Servicio de Emergencia Odontológica sin Endodoncia
A6: Datos Generales | AA6: Servicio de Emergencia Odontológica Completa
AA7: Servicio de Emergencia Odontológica Completa + Prevención
A8: Solicitante: | C8: <Nombre del Solicitante> | F8: Ocupación: | H8: <Ocupación del Solicitante> | AA8: Servicio Odontológico Amplio sin Endodoncia
AA9: Servicio Odontológico Amplio
A10: Edad Promedio: | C10: 40 | F10: Corredor: | H10: <Corredor del Solicitante> | AA10: Servicio de Emergencia Odontológica sin Endodoncia Familiar
AA11: Servicio de Emergencia Odontológica Completa Familiar
A12: Clasificación: | C12: C | F12: Fecha: | H12: =TODAY() -> 2018-07-26 | AA12: Servicio de Emergencia Odontológica Completa + Prevención Familiar
AA13: Servicio Odontológico Amplio sin Endodoncia Familiar
A14: Cantidad de Asegurados: | C14: 10 | AA14: Servicio Odontológico Amplio Familiar
A16: Datos de la Cotización
A17: COBERTURAS | G17: SUMA ASEGURADA | I17: DEDUCIBLE | J17: TASA | K17: PRIMA
A18: Muerte por Cualquier Causa | G18: 25000 | J18: =IF(G$18=0, "",Calculador!AC35) -> 3.35 | K18: =IF(ISERROR(G$18*J$18/1000), 0, G$18*J$18/1000) -> 83.75
A19: Adelanto por Gastos Funerarios | G19: =CONCATENATE("Hasta B/.", IF(G$18*0.2>3000, 3000, G$18*0.2), ".00", " (incluido)") -> Hasta B/.3000.00 (incluido) | K19: 0
A20: Muerte Accidental | J20: =IF(G$20=0, "",Calculador!AC36) ->  | K20: =IF(ISERROR(G$20*J$20/1000), "", G$20*J$20/1000) -> 
A21: Adelanto por Incapacidad Total y Permanente por Accidente | J21: =IF(G$21=0, "",Calculador!AC37) ->  | K21: =IF(ISERROR(G$21*J$21/1000), "", G$21*J$21/1000) -> 
A22: Adelanto del Básico por Cancer | J22: =IF(G$22=0, "",Calculador!AC38) ->  | K22: =IF(ISERROR(G$22*J$22/1000), "", G$22*J$22/1000) -> 
A23: Pago Adicional por Cancer | J23: =IF(G$23=0, "",Calculador!AC39) ->  | K23: =IF(ISERROR(G$23*J$23/1000), "", G$23*J$23/1000) -> 
A24: Pago Adicional por Gastos Funerarios | J24: =IF(G$24=0, "",J$18) ->  | K24: =IF(ISERROR(G$24*J$24/1000), "", G$24*J$24/1000) -> 
A25: Muerte en Transporte Público | J25: =IF(G$25=0, "",Calculador!AC40) ->  | K25: =IF(ISERROR(G$25*J$25/1000), "", G$25*J$25/1000) -> 
A26: Muerte Natural Cónyuge | J26: =IF(G$26=0, "",Calculador!AC41) ->  | K26: =IF(ISERROR(G$26*J$26/1000), "", G$26*J$26/1000) -> 
A27: Muerte Natural Hijos | J27: =IF(G$27=0, "",Calculador!AC42) ->  | K27: =IF(ISERROR(G$27*J$27/1000), "", G$27*J$27/1000) -> 
A28: Adelanto por Enfermedades Graves | J28: =IF(G$28=0, "",#REF!) ->  | K28: =IF(ISERROR(G$28*J$28/1000), "", G$28*J$28/1000) -> 
A29: Gastos Médicos por Accidente | I29: =IF(AND(G$29>0, G$29<=1000), 25, IF(AND(G$29>=1500, G$29<=2500),50, IF(G$29=0,"",100))) ->  | K29: =IF(G$29=0, "", Calculador!AC43) -> 
A30: Renta Diaria por Hospitalización por Accidente | I30: =IF(G$30>0, "3 días", "") ->  | K30: =IF(G$30=0, "",Calculador!AC44) -> 
A31: Renta Diaria por Incapacidad Temporal por Accidente | I31: =IF(G$31>0, "5 días", "") ->  | J31: =IF(G$31=0, "",Calculador!AC45) ->  | K31: =IF(ISERROR(G$31*J$31), "", G$31*J$31) -> 
A32: Servicio de Asistencia Médica Móvil | K32: =IF(OR(G$32=0, G$32 = "No"), "", Calculador!AC46) -> 
A33: Servicio de Orientación Médica | K33: =IF(OR(G$33=0, G$33 = "No"), "", Calculador!AC47) -> 
A34: Servicio de Emergencia Odontológica sin Endodoncia | K34: =IF(OR(G$34=0, G$34 = "No"), "", Calculador!AC48) -> 
A35: Asistencia Funeraria Nacional Individual | K35: =IF(OR(G$35=0, G$35 = "No"), "", Calculador!AC49) -> 
J36: Sub-Total | K36: =SUM(K$18:K$35) -> 83.75
D37: Costos de Adquisición | E37: 0.4 | J37: Descuento | K37: =-(IF(C$14<=9,0,IF(C$14<=15,0.1,IF(C$14<=20,0.13,IF(C$14<=29,0.15,IF(C$14<=59,0.2,IF(C$14<=99,0.25,IF(C$14<=249,0.3,0.35)))))))*(K$36-SUM(K32:K35)))-IF(C$14<=4,0,IF(C$14<=20,0.05,IF(C$14<=50,0.1,IF(C$14<=100,0.15,0.2))))*SUM(K35:K35) -> -8.375
J38: Impuestos (5%) | K38: =SUM(K$36:K$37)*0.05 -> 3.76875
E39: Prima Anual del Colectivo con Impuestos | F39: =ROUND(K$39,2)*C$14 -> 791.4 | J39: Prima Anual por Persona con Impuestos | K39: =SUM(K$36:K$38) -> 79.14375 | U39: 100
E41: Prima Mensual del Colectivo con Impuestos (12 Pagos) | F41: =IF(F$39 < 25, 0,ROUND(F$39,2)/12) -> 65.95 | J41: Prima Mensual por Persona con Impuestos | K41: =IF(F$39 < 25, 0, ROUND(K$39,2)/12) -> 6.595
L42: 0.72 | U42: 23

Sheet Saldo Deudor (hidden)
D1: Colectivo de Vida - Saldo Deudor
E5: drojas | F5: CUMPLI02 | G5: Comercial_07112017
A6: Datos Generales
A8: Solicitante: | C8: <Nombre del Solicitante> | F8: Ocupación: | G8: <Ocupación del Solicitante>
A10: Edad Promedio: | C10: 30 | F10: Corredor: | G10: <Corredor del Solicitante>
A12: Clasificación: | C12: A | F12: Fecha: | G12: =TODAY() -> 2018-07-26
A14: Cantidad de Asegurados: | C14: 10
A16: Datos de la Cotización
A17: COBERTURAS | F17: (SI / NO) | G17: TASA ANUAL POR MILLAR
A18: Muerte por Cualquier Causa | F18: SI | G18: =Calculador!I44 -> 2
A19: Adelanto por Gastos Funerarios | F19: =F$18 -> SI | G19: 0
A20: Muerte Accidental | F20: NO | G20: =IF(F$20="NO", "",Calculador!I46) -> 
A21: Adelanto por Incapacidad Total y Permanente por Accidente | F21: NO | G21: =IF(F$21="NO", "",Calculador!I47) -> 
A22: Adelanto del Básico por Cancer | F22: NO | G22: =IF(F$22="NO", "",Calculador!I48) -> 
A23: Pago Adicional por Cancer | F23: NO | G23: =IF(F$23="NO", "",Calculador!I49) -> 
A24: Pago Adicional por Gastos Funerarios | F24: NO | G24: =IF(F$24="NO", "",G$18) -> 
A25: Muerte en Transporte Público | F25: NO | G25: =IF(F$25="NO", "",Calculador!I51) -> 
A26: Muerte Natural Cónyuge | F26: NO | G26: =IF(F$26="NO", "",Calculador!I52) -> 
A27: Muerte Natural Hijos | F27: NO | G27: =IF(F$27="NO", "",Calculador!I53) -> 
A28: Adelanto por Enfermedades Graves | F28: NO | G28: =IF(F$28="NO", "",Calculador!I54) -> 
F29: Sub-Total | G29: =SUM(G$18:G$28) -> 2
B30: Costos de Adquisición | C30: 0.4 | F30: Descuento | G30: =-IF(C$14<=9,0,IF(C$14<=15,0.1,IF(C$14<=20,0.13,IF(C$14<=29,0.15,IF(C$14<=59,0.2,IF(C$14<=99,0.25,IF(C$14<=249,0.3,0.35)))))))*G$29 -> -0.2
F31: Impuestos (5%) | G31: =SUM(G$29:G$30)*0.05 -> 0.09
F32: Tasa Anual por Millar por Persona con Impuestos | G32: =SUM(G$29:G$31) -> 1.89

Sheet Coberturas AP - CV (hidden)
A1: Concatenado | B1: Cobertura | C1: Suma Asegurada Mínima | D1: Suma Asegurada Máxima | E1: Suma Asegurada Fija | F1: Exposición Fija | G1: Edad Mínima | H1: Edad Máxima | I1: Edad Permanencia | J1: Producto | K1: Ramo Subramo | L1: Ramo | M1: Rol | N1: Tasa Anual por Millar | O1: Prima Anual Fija | P1: Deducible | Q1: Indemnización Máxima | R1: Clasificación Riesgo | S1: Tipo de Beneficio | T1: Observaciones
A2: =+Tabla1[[#This Row],[Producto]]&Tabla1[[#This Row],[Cobertura]]&Tabla1[[#This Row],[Edad Mínima]]&Tabla1[[#This Row],[Clasificación Riesgo]] -> AP IndividualMuerte Accidental17A | B2: Muerte Accidental | C2: 1000 | D2: 1580000 | E2: 0 | F2: 0 | G2: 17 | H2: 60 | I2: 75 | J2: AP Individual | K2: 0703 - Plan Normal | L2: 07 - Accidentes Personales | M2: 0 | N2: 1 | O2: 0 | P2: 0 | Q2: 0 | R2: A | S2: Básico
A3: =+Tabla1[[#This Row],[Producto]]&Tabla1[[#This Row],[Cobertura]]&Tabla1[[#This Row],[Edad Mínima]]&Tabla1[[#This Row],[Clasificación Riesgo]] -> AP IndividualMuerte Accidental17B | B3: Muerte Accidental | C3: 1000 | D3: 1580000 | E3: 0 | F3: 0 | G3: 17 | H3: 60 | I3: 75 | J3: AP Individual | K3: 0703 - Plan Normal | L3: 07 - Accidentes Personales | M3: 0 | N3: 1.6 | O3: 0 | P3: 0 | Q3: 0 | R3: B | S3: Básico
A4: =+Tabla1[[#This Row],[Producto]]&Tabla1[[#This Row],[Cobertura]]&Tabla1[[#This Row],[Edad Mínima]]&Tabla1[[#This Row],[Clasificación Riesgo]] -> AP IndividualMuerte Accidental17C | B4: Muerte Accidental | C4: 1000 | D4: 1580000 | E4: 0 | F4: 0 | G4: 17 | H4: 60 | I4: 75 | J4: AP Individual | K4: 0703 - Plan Normal | L4: 07 - Accidentes Personales | M4: 0 | N4: 2.2 | O4: 0 | P4: 0 | Q4: 0 | R4: C | S4: Básico
A5: =+Tabla1[[#This Row],[Producto]]&Tabla1[[#This Row],[Cobertura]]&Tabla1[[#This Row],[Edad Mínima]]&Tabla1[[#This Row],[Clasificación Riesgo]] -> AP IndividualMuerte Accidental61A | B5: Muerte Accidental | C5: 1000 | D5: 1580000 | E5: 0 | F5: 0 | G5: 61 | H5: 70 | I5: 75 | J5: AP Individual | K5: 0703 - Plan Normal | L5: 07 - Accidentes Personales | M5: 0 | N5: 1.6 | O5: 0 | P5: 0 | Q5: 0 | R5: A | S5: Básico
A6: =+Tabla1[[#This Row],[Producto]]&Tabla1[[#This Row],[Cobertura]]&Tabla1[[#This Row],[Edad Mínima]]&Tabla1[[#This Row],[Clasificación Riesgo]] -> AP IndividualMuerte Accidental61B | B6: Muerte Accidental | C6: 1000 | D6: 1580000 | E6: 0 | F6: 0 | G6: 61 | H6: 70 | I6: 75 | J6: AP Individual | K6: 0703 - Plan Normal | L6: 07 - Accidentes Personales | M6: 0 | N6: 2.3 | O6: 0 | P6: 0 | Q6: 0 | R6: B | S6: Básico
A7: =+Tabla1[[#This Row],[Producto]]&Tabla1[[#This Row],[Cobertura]]&Tabla1[[#This Row],[Edad Mínima]]&Tabla1[[#This Row],[Clasificación Riesgo]] -> AP IndividualMuerte Accidental61C | B7: Muerte Accidental | C7: 1000 | D7: 1580000 | E7: 0 | F7: 0 | G7: 61 | H7: 70 | I7: 75 | J7: AP Individual | K7: 0703 - Plan Normal | L7: 07 - Accidentes Personales | M7: 0 | N7: 3.25 | O7: 0 | P7: 0 | Q7: 0 | R7: C | S7: Básico
A8: =+Tabla1[[#This Row],[Producto]]&Tabla1[[#This Row],[Cobertura]]&Tabla1[[#This Row],[Edad Mínima]]&Tabla1[[#This Row],[Clasificación Riesgo]] -> AP IndividualMuerte Accidental71A | B8: Muerte Accidental | C8: 1000 | D8: 100000 | E8: 0 | F8: 0 | G8: 71 | H8: 75 | I8: 75 | J8: AP Individual | K8: 0703 - Plan Normal | L8: 07 - Accidentes Personales | M8: 0 | N8: 1.65 | O8: 0 | P8: 0 | Q8: 0 | R8: A | S8: Básico
A9: =+Tabla1[[#This Row],[Producto]]&Tabla1[[#This Row],[Cobertura]]&Tabla1[[#This Row],[Edad Mínima]]&Tabla1[[#This Row],[Clasificación Riesgo]] -> AP IndividualMuerte Accidental71B | B9: Muerte Accidental | C9: 1000 | D9: 100000 | E9: 0 | F9: 0 | G9: 71 | H9: 75 | I9: 75 | J9: AP Individual | K9: 0703 - Plan Normal | L9: 07 - Accidentes Personales | M9: 0 | N9: 2.4 | O9: 0 | P9: 0 | Q9: 0 | R9: B | S9: Básico
A10: =+Tabla1[[#This Row],[Producto]]&Tabla1[[#This Row],[Cobertura]]&Tabla1[[#This Row],[Edad Mínima]]&Tabla1[[#This Row],[Clasificación Riesgo]] -> AP IndividualMuerte Accidental71C | B10: Muerte Accidental | C10: 1000 | D10: 100000 | E10: 0 | F10: 0 | G10: 71 | H10: 75 | I10: 75 | J10: AP Individual | K10: 0703 - Plan Normal | L10: 07 - Accidentes Personales | M10: 0 | N10: 3 | O10: 0 | P10: 0 | Q10: 0 | R10: C | S10: Básico
B11: Adelanto por Incapacidad Total y Permanente por Accidente | C11: 0 | D11: 0 | E11: Suma Asegurada de Muerte Accidental | F11: 0 | G11: 18 | H11: 65 | I11: 70 | J11: AP Individual | K11: 0703 - Plan Normal | L11: 07 - Accidentes Personales | M11: 0 | N11: 0 | O11: 0 | P11: 0 | Q11: 0 | R11: A | S11: Básico | T11: Beneficio incluido en la tarifa de Muerte Accidental
B12: Adelanto por Incapacidad Total y Permanente por Accidente | C12: 0 | D12: 0 | E12: Suma Asegurada de Muerte Accidental | F12: 0 | G12: 18 | H12: 65 | I12: 70 | J12: AP Individual | K12: 0703 - Plan Normal | L12: 07 - Accidentes Personales | M12: 0 | N12: 0 | O12: 0 | P12: 0 | Q12: 0 | R12: B | S12: Básico | T12: Beneficio incluido en la tarifa de Muerte Accidental
B13: Adelanto por Incapacidad Total y Permanente por Accidente | C13: 0 | D13: 0 | E13: Suma Asegurada de Muerte Accidental | F13: 0 | G13: 18 | H13: 65 | I13: 70 | J13: AP Individual | K13: 0703 - Plan Normal | L13: 07 - Accidentes Personales | M13: 0 | N13: 0 | O13: 0 | P13: 0 | Q13: 0 | R13: C | S13: Básico | T13: Beneficio incluido en la tarifa de Muerte Accidental
B14: Muerte en Transporte Público | C14: 0 | D14: 0 | E14: Suma Asegurada de Muerte Accidental | F14: 0 | G14: 17 | H14: 65 | I14: 70 | J14: AP Individual | K14: 0703 - Plan Normal | L14: 07 - Accidentes Personales | M14: 0 | N14: 0 | O14: 0 | P14: 0 | Q14: 100000 | R14: A | S14: Básico | T14: Beneficio incluido en la tarifa de Muerte Accidental
B15: Muerte en Transporte Público | C15: 0 | D15: 0 | E15: Suma Asegurada de Muerte Accidental | F15: 0 | G15: 17 | H15: 65 | I15: 70 | J15: AP Individual | K15: 0703 - Plan Normal | L15: 07 - Accidentes Personales | M15: 0 | N15: 0 | O15: 0 | P15: 0 | Q15: 100000 | R15: B | S15: Básico | T15: Beneficio incluido en la tarifa de Muerte Accidental
B16: Muerte en Transporte Público | C16: 0 | D16: 0 | E16: Suma Asegurada de Muerte Accidental | F16: 0 | G16: 17 | H16: 65 | I16: 70 | J16: AP Individual | K16: 0703 - Plan Normal | L16: 07 - Accidentes Personales | M16: 0 | N16: 0 | O16: 0 | P16: 0 | Q16: 100000 | R16: C | S16: Básico | T16: Beneficio incluido en la tarifa de Muerte Accidental
B17: Adelanto por Desmembramiento por Accidente | C17: 0 | D17: 0 | E17: Suma Asegurada de Muerte Accidental | F17: 0 | G17: 17 | H17: 65 | I17: 70 | J17: AP Individual | K17: 0703 - Plan Normal | L17: 07 - Accidentes Personales | M17: 0 | N17: 0 | O17: 0 | P17: 0 | Q17: 0 | R17: A | S17: Básico | T17: Beneficio incluido en la tarifa de Muerte Accidental
B18: Adelanto por Desmembramiento por Accidente | C18: 0 | D18: 0 | E18: Suma Asegurada de Muerte Accidental | F18: 0 | G18: 17 | H18: 65 | I18: 70 | J18: AP Individual | K18: 0703 - Plan Normal | L18: 07 - Accidentes Personales | M18: 0 | N18: 0 | O18: 0 | P18: 0 | Q18: 0 | R18: B | S18: Básico | T18: Beneficio incluido en la tarifa de Muerte Accidental
B19: Adelanto por Desmembramiento por Accidente | C19: 0 | D19: 0 | E19: Suma Asegurada de Muerte Accidental | F19: 0 | G19: 17 | H19: 65 | I19: 70 | J19: AP Individual | K19: 0703 - Plan Normal | L19: 07 - Accidentes Personales | M19: 0 | N19: 0 | O19: 0 | P19: 0 | Q19: 0 | R19: C | S19: Básico | T19: Beneficio incluido en la tarifa de Muerte Accidental
B20: Homicidio Culposo | C20: 0 | D20: 0 | E20: Suma Asegurada de Muerte Accidental | F20: 0 | G20: 17 | H20: 70 | I20: 75 | J20: AP Individual | K20: 0703 - Plan Normal | L20: 07 - Accidentes Personales | M20: 0 | N20: 0 | O20: 0 | P20: 0 | Q20: 0 | R20: A | S20: Básico | T20: Beneficio incluido en la tarifa de Muerte Accidental
B21: Homicidio Culposo | C21: 0 | D21: 0 | E21: Suma Asegurada de Muerte Accidental | F21: 0 | G21: 17 | H21: 70 | I21: 75 | J21: AP Individual | K21: 0703 - Plan Normal | L21: 07 - Accidentes Personales | M21: 0 | N21: 0 | O21: 0 | P21: 0 | Q21: 0 | R21: B | S21: Básico | T21: Beneficio incluido en la tarifa de Muerte Accidental
B22: Homicidio Culposo | C22: 0 | D22: 0 | E22: Suma Asegurada de Muerte Accidental | F22: 0 | G22: 17 | H22: 70 | I22: 75 | J22: AP Individual | K22: 0703 - Plan Normal | L22: 07 - Accidentes Personales | M22: 0 | N22: 0 | O22: 0 | P22: 0 | Q22: 0 | R22: C | S22: Básico | T22: Beneficio incluido en la tarifa de Muerte Accidental
B23: Adelanto por Gastos Funerarios | C23: 0 | D23: 3000 | E23: 20% de la Suma Asegurada de Muerte Accidental | F23: 0 | G23: 17 | H23: 65 | I23: 70 | J23: AP Individual | K23: 0703 - Plan Normal | L23: 07 - Accidentes Personales | M23: 0 | N23: 0 | O23: 0 | P23: 0 | Q23: 0 | R23: A | S23: Básico | T23: Beneficio incluido en la tarifa de Muerte Accidental
B24: Adelanto por Gastos Funerarios | C24: 0 | D24: 3000 | E24: 20% de la Suma Asegurada de Muerte Accidental | F24: 0 | G24: 17 | H24: 65 | I24: 70 | J24: AP Individual | K24: 0703 - Plan Normal | L24: 07 - Accidentes Personales | M24: 0 | N24: 0 | O24: 0 | P24: 0 | Q24: 0 | R24: B | S24: Básico | T24: Beneficio incluido en la tarifa de Muerte Accidental
B25: Adelanto por Gastos Funerarios | C25: 0 | D25: 3000 | E25: 20% de la Suma Asegurada de Muerte Accidental | F25: 0 | G25: 17 | H25: 65 | I25: 70 | J25: AP Individual | K25: 0703 - Plan Normal | L25: 07 - Accidentes Personales | M25: 0 | N25: 0 | O25: 0 | P25: 0 | Q25: 0 | R25: C | S25: Básico | T25: Beneficio incluido en la tarifa de Muerte Accidental
B26: Beneficio Doloso | C26: 1000 | D26: 100000 | E26: Suma Asegurada de Muerte Accidental | F26: 0 | G26: 18 | H26: 70 | I26: 75 | J26: AP Individual | K26: 0703 - Plan Normal | L26: 07 - Accidentes Personales | M26: 0 | N26: 0.25 | O26: 0 | P26: 0 | Q26: 0 | R26: A | S26: Adicional
B27: Beneficio Doloso | C27: 1000 | D27: 100000 | E27: Suma Asegurada de Muerte Accidental | F27: 0 | G27: 18 | H27: 70 | I27: 75 | J27: AP Individual | K27: 0703 - Plan Normal | L27: 07 - Accidentes Personales | M27: 0 | N27: 0.25 | O27: 0 | P27: 0 | Q27: 0 | R27: B | S27: Adicional
B28: Beneficio Doloso | C28: 1000 | D28: 100000 | E28: Suma Asegurada de Muerte Accidental | F28: 0 | G28: 18 | H28: 70 | I28: 75 | J28: AP Individual | K28: 0703 - Plan Normal | L28: 07 - Accidentes Personales | M28: 0 | N28: 0.3 | O28: 0 | P28: 0 | Q28: 0 | R28: C | S28: Adicional
A29: =+Tabla1[[#This Row],[Cobertura]]&Tabla1[[#This Row],[Suma Asegurada Fija]]&Tabla1[[#This Row],[Clasificación Riesgo]] -> Gastos Médicos500A | B29: Gastos Médicos | C29: 0 | D29: 0 | E29: 500 | F29: 0 | G29: 17 | H29: 65 | I29: 70 | J29: AP Individual | K29: 0703 - Plan Normal | L29: 07 - Accidentes Personales | M29: 0 | N29: 0 | O29: 8.2 | P29: 25 | Q29: 0 | R29: A | S29: Adicional | T29: Cobertura máxima del 10% de la Suma Asegurada en Muerte Accidental
A30: =+Tabla1[[#This Row],[Cobertura]]&Tabla1[[#This Row],[Suma Asegurada Fija]]&Tabla1[[#This Row],[Clasificación Riesgo]] -> Gastos Médicos500B | B30: Gastos Médicos | C30: 0 | D30: 0 | E30: 500 | F30: 0 | G30: 17 | H30: 65 | I30: 70 | J30: AP Individual | K30: 0703 - Plan Normal | L30: 07 - Accidentes Personales | M30: 0 | N30: 0 | O30: 12 | P30: 25 | Q30: 0 | R30: B | S30: Adicional | T30: Cobertura máxima del 10% de la Suma Asegurada en Muerte Accidental
A31: =+Tabla1[[#This Row],[Cobertura]]&Tabla1[[#This Row],[Suma Asegurada Fija]]&Tabla1[[#This Row],[Clasificación Riesgo]] -> Gastos Médicos500C | B31: Gastos Médicos | C31: 0 | D31: 0 | E31: 500 | F31: 0 | G31: 17 | H31: 65 | I31: 70 | J31: AP Individual | K31: 0703 - Plan Normal | L31: 07 - Accidentes Personales | M31: 0 | N31: 0 | O31: 16 | P31: 25 | Q31: 0 | R31: C | S31: Adicional | T31: Cobertura máxima del 10% de la Suma Asegurada en Muerte Accidental
A32: =+Tabla1[[#This Row],[Cobertura]]&Tabla1[[#This Row],[Suma Asegurada Fija]]&Tabla1[[#This Row],[Clasificación Riesgo]] -> Gastos Médicos1000A | B32: Gastos Médicos | C32: 0 | D32: 0 | E32: 1000 | F32: 0 | G32: 17 | H32: 65 | I32: 70 | J32: AP Individual | K32: 0703 - Plan Normal | L32: 07 - Accidentes Personales | M32: 0 | N32: 0 | O32: 12 | P32: 25 | Q32: 0 | R32: A | S32: Adicional | T32: Cobertura máxima del 10% de la Suma Asegurada en Muerte Accidental
A33: =+Tabla1[[#This Row],[Cobertura]]&Tabla1[[#This Row],[Suma Asegurada Fija]]&Tabla1[[#This Row],[Clasificación Riesgo]] -> Gastos Médicos1000B | B33: Gastos Médicos | C33: 0 | D33: 0 | E33: 1000 | F33: 0 | G33: 17 | H33: 65 | I33: 70 | J33: AP Individual | K33: 0703 - Plan Normal | L33: 07 - Accidentes Personales | M33: 0 | N33: 0 | O33: 21.58 | P33: 25 | Q33: 0 | R33: B | S33: Adicional | T33: Cobertura máxima del 10% de la Suma Asegurada en Muerte Accidental
A34: =+Tabla1[[#This Row],[Cobertura]]&Tabla1[[#This Row],[Suma Asegurada Fija]]&Tabla1[[#This Row],[Clasificación Riesgo]] -> Gastos Médicos1000C | B34: Gastos Médicos | C34: 0 | D34: 0 | E34: 1000 | F34: 0 | G34: 17 | H34: 65 | I34: 70 | J34: AP Individual | K34: 0703 - Plan Normal | L34: 07 - Accidentes Personales | M34: 0 | N34: 0 | O34: 26 | P34: 25 | Q34: 0 | R34: C | S34: Adicional | T34: Cobertura máxima del 10% de la Suma Asegurada en Muerte Accidental
A35: =+Tabla1[[#This Row],[Cobertura]]&Tabla1[[#This Row],[Suma Asegurada Fija]]&Tabla1[[#This Row],[Clasificación Riesgo]] -> Gastos Médicos1500A | B35: Gastos Médicos | C35: 0 | D35: 0 | E35: 1500 | F35: 0 | G35: 17 | H35: 65 | I35: 70 | J35: AP Individual | K35: 0703 - Plan Normal | L35: 07 - Accidentes Personales | M35: 0 | N35: 0 | O35: 16 | P35: 50 | Q35: 0 | R35: A | S35: Adicional | T35: Cobertura máxima del 10% de la Suma Asegurada en Muerte Accidental
A36: =+Tabla1[[#This Row],[Cobertura]]&Tabla1[[#This Row],[Suma Asegurada Fija]]&Tabla1[[#This Row],[Clasificación Riesgo]] -> Gastos Médicos1500B | B36: Gastos Médicos | C36: 0 | D36: 0 | E36: 1500 | F36: 0 | G36: 17 | H36: 65 | I36: 70 | J36: AP Individual | K36: 0703 - Plan Normal | L36: 07 - Accidentes Personales | M36: 0 | N36: 0 | O36: 27 | P36: 50 | Q36: 0 | R36: B | S36: Adicional | T36: Cobertura máxima del 10% de la Suma Asegurada en Muerte Accidental
A37: =+Tabla1[[#This Row],[Cobertura]]&Tabla1[[#This Row],[Suma Asegurada Fija]]&Tabla1[[#This Row],[Clasificación Riesgo]] -> Gastos Médicos1500C | B37: Gastos Médicos | C37: 0 | D37: 0 | E37: 1500 | F37: 0 | G37: 17 | H37: 65 | I37: 70 | J37: AP Individual | K37: 0703 - Plan Normal | L37: 07 - Accidentes Personales | M37: 0 | N37: 0 | O37: 36 | P37: 50 | Q37: 0 | R37: C | S37: Adicional | T37: Cobertura máxima del 10% de la Suma Asegurada en Muerte Accidental
A38: =+Tabla1[[#This Row],[Cobertura]]&Tabla1[[#This Row],[Suma Asegurada Fija]]&Tabla1[[#This Row],[Clasificación Riesgo]] -> Gastos Médicos2000A | B38: Gastos Médicos | C38: 0 | D38: 0 | E38: 2000 | F38: 0 | G38: 17 | H38: 65 | I38: 70 | J38: AP Individual | K38: 0703 - Plan Normal | L38: 07 - Accidentes Personales | M38: 0 | N38: 0 | O38: 21 | P38: 50 | Q38: 0 | R38: A | S38: Adicional | T38: Cobertura máxima del 10% de la Suma Asegurada en Muerte Accidental
A39: =+Tabla1[[#This Row],[Cobertura]]&Tabla1[[#This Row],[Suma Asegurada Fija]]&Tabla1[[#This Row],[Clasificación Riesgo]] -> Gastos Médicos2000B | B39: Gastos Médicos | C39: 0 | D39: 0 | E39: 2000 | F39: 0 | G39: 17 | H39: 65 | I39: 70 | J39: AP Individual | K39: 0703 - Plan Normal | L39: 07 - Accidentes Personales | M39: 0 | N39: 0 | O39: 39.5 | P39: 50 | Q39: 0 | R39: B | S39: Adicional | T39: Cobertura máxima del 10% de la Suma Asegurada en Muerte Accidental
A40: =+Tabla1[[#This Row],[Cobertura]]&Tabla1[[#This Row],[Suma Asegurada Fija]]&Tabla1[[#This Row],[Clasificación Riesgo]] -> Gastos Médicos2000C | B40: Gastos Médicos | C40: 0 | D40: 0 | E40: 2000 | F40: 0 | G40: 17 | H40: 65 | I40: 70 | J40: AP Individual | K40: 0703 - Plan Normal | L40: 07 - Accidentes Personales | M40: 0 | N40: 0 | O40: 46.5 | P40: 50 | Q40: 0 | R40: C | S40: Adicional | T40: Cobertura máxima del 10% de la Suma Asegurada en Muerte Accidental
A41: =+Tabla1[[#This Row],[Cobertura]]&Tabla1[[#This Row],[Suma Asegurada Fija]]&Tabla1[[#This Row],[Clasificación Riesgo]] -> Gastos Médicos2500A | B41: Gastos Médicos | C41: 0 | D41: 0 | E41: 2500 | F41: 0 | G41: 17 | H41: 65 | I41: 70 | J41: AP Individual | K41: 0703 - Plan Normal | L41: 07 - Accidentes Personales | M41: 0 | N41: 0 | O41: 25 | P41: 50 | Q41: 0 | R41: A | S41: Adicional | T41: Cobertura máxima del 10% de la Suma Asegurada en Muerte Accidental
A42: =+Tabla1[[#This Row],[Cobertura]]&Tabla1[[#This Row],[Suma Asegurada Fija]]&Tabla1[[#This Row],[Clasificación Riesgo]] -> Gastos Médicos2500B | B42: Gastos Médicos | C42: 0 | D42: 0 | E42: 2500 | F42: 0 | G42: 17 | H42: 65 | I42: 70 | J42: AP Individual | K42: 0703 - Plan Normal | L42: 07 - Accidentes Personales | M42: 0 | N42: 0 | O42: 45 | P42: 50 | Q42: 0 | R42: B | S42: Adicional | T42: Cobertura máxima del 10% de la Suma Asegurada en Muerte Accidental
A43: =+Tabla1[[#This Row],[Cobertura]]&Tabla1[[#This Row],[Suma Asegurada Fija]]&Tabla1[[#This Row],[Clasificación Riesgo]] -> Gastos Médicos2500C | B43: Gastos Médicos | C43: 0 | D43: 0 | E43: 2500 | F43: 0 | G43: 17 | H43: 65 | I43: 70 | J43: AP Individual | K43: 0703 - Plan Normal | L43: 07 - Accidentes Personales | M43: 0 | N43: 0 | O43: 56.5 | P43: 50 | Q43: 0 | R43: C | S43: Adicional | T43: Cobertura máxima del 10% de la Suma Asegurada en Muerte Accidental | AD43: =+V29&'Coberturas AP - CV'!$B$5136 -> 
A44: =+Tabla1[[#This Row],[Cobertura]]&Tabla1[[#This Row],[Suma Asegurada Fija]]&Tabla1[[#This Row],[Clasificación Riesgo]] -> Gastos Médicos3000A | B44: Gastos Médicos | C44: 0 | D44: 0 | E44: 3000 | F44: 0 | G44: 17 | H44: 65 | I44: 70 | J44: AP Individual | K44: 0703 - Plan Normal | L44: 07 - Accidentes Personales | M44: 0 | N44: 0 | O44: 30 | P44: 100 | Q44: 0 | R44: A | S44: Adicional | T44: Cobertura máxima del 10% de la Suma Asegurada en Muerte Accidental
A45: =+Tabla1[[#This Row],[Cobertura]]&Tabla1[[#This Row],[Suma Asegurada Fija]]&Tabla1[[#This Row],[Clasificación Riesgo]] -> Gastos Médicos3000B | B45: Gastos Médicos | C45: 0 | D45: 0 | E45: 3000 | F45: 0 | G45: 17 | H45: 65 | I45: 70 | J45: AP Individual | K45: 0703 - Plan Normal | L45: 07 - Accidentes Personales | M45: 0 | N45: 0 | O45: 53.5 | P45: 100 | Q45: 0 | R45: B | S45: Adicional | T45: Cobertura máxima del 10% de la Suma Asegurada en Muerte Accidental
A46: =+Tabla1[[#This Row],[Cobertura]]&Tabla1[[#This Row],[Suma Asegurada Fija]]&Tabla1[[#This Row],[Clasificación Riesgo]] -> Gastos Médicos3000C | B46: Gastos Médicos | C46: 0 | D46: 0 | E46: 3000 | F46: 0 | G46: 17 | H46: 65 | I46: 70 | J46: AP Individual | K46: 0703 - Plan Normal | L46: 07 - Accidentes Personales | M46: 0 | N46: 0 | O46: 68 | P46: 100 | Q46: 0 | R46: C | S46: Adicional | T46: Cobertura máxima del 10% de la Suma Asegurada en Muerte Accidental
A47: =+Tabla1[[#This Row],[Cobertura]]&Tabla1[[#This Row],[Suma Asegurada Fija]]&Tabla1[[#This Row],[Clasificación Riesgo]] -> Gastos Médicos4000A | B47: Gastos Médicos | C47: 0 | D47: 0 | E47: 4000 | F47: 0 | G47: 17 | H47: 65 | I47: 70 | J47: AP Individual | K47: 0703 - Plan Normal | L47: 07 - Accidentes Personales | M47: 0 | N47: 0 | O47: 40.5 | P47: 100 | Q47: 0 | R47: A | S47: Adicional | T47: Cobertura máxima del 10% de la Suma Asegurada en Muerte Accidental
A48: =+Tabla1[[#This Row],[Cobertura]]&Tabla1[[#This Row],[Suma Asegurada Fija]]&Tabla1[[#This Row],[Clasificación Riesgo]] -> Gastos Médicos4000B | B48: Gastos Médicos | C48: 0 | D48: 0 | E48: 4000 | F48: 0 | G48: 17 | H48: 65 | I48: 70 | J48: AP Individual | K48: 0703 - Plan Normal | L48: 07 - Accidentes Personales | M48: 0 | N48: 0 | O48: 70.5 | P48: 100 | Q48: 0 | R48: B | S48: Adicional | T48: Cobertura máxima del 10% de la Suma Asegurada en Muerte Accidental
A49: =+Tabla1[[#This Row],[Cobertura]]&Tabla1[[#This Row],[Suma Asegurada Fija]]&Tabla1[[#This Row],[Clasificación Riesgo]] -> Gastos Médicos4000C | B49: Gastos Médicos | C49: 0 | D49: 0 | E49: 4000 | F49: 0 | G49: 17 | H49: 65 | I49: 70 | J49: AP Individual | K49: 0703 - Plan Normal | L49: 07 - Accidentes Personales | M49: 0 | N49: 0 | O49: 93.5 | P49: 100 | Q49: 0 | R49: C | S49: Adicional | T49: Cobertura máxima del 10% de la Suma Asegurada en Muerte Accidental
A50: =+Tabla1[[#This Row],[Cobertura]]&Tabla1[[#This Row],[Suma Asegurada Fija]]&Tabla1[[#This Row],[Clasificación Riesgo]] -> Gastos Médicos5000A | B50: Gastos Médicos | C50: 0 | D50: 0 | E50: 5000 | F50: 0 | G50: 17 | H50: 65 | I50: 70 | J50: AP Individual | K50: 0703 - Plan Normal | L50: 07 - Accidentes Personales | M50: 0 | N50: 0 | O50: 48.5 | P50: 100 | Q50: 0 | R50: A | S50: Adicional | T50: Cobertura máxima del 10% de la Suma Asegurada en Muerte Accidental
A51: =+Tabla1[[#This Row],[Cobertura]]&Tabla1[[#This Row],[Suma Asegurada Fija]]&Tabla1[[#This Row],[Clasificación Riesgo]] -> Gastos Médicos5000B | B51: Gastos Médicos | C51: 0 | D51: 0 | E51: 5000 | F51: 0 | G51: 17 | H51: 65 | I51: 70 | J51: AP Individual | K51: 0703 - Plan Normal | L51: 07 - Accidentes Personales | M51: 0 | N51: 0 | O51: 85 | P51: 100 | Q51: 0 | R51: B | S51: Adicional | T51: Cobertura máxima del 10% de la Suma Asegurada en Muerte Accidental
A52: =+Tabla1[[#This Row],[Cobertura]]&Tabla1[[#This Row],[Suma Asegurada Fija]]&Tabla1[[#This Row],[Clasificación Riesgo]] -> Gastos Médicos5000C | B52: Gastos Médicos | C52: 0 | D52: 0 | E52: 5000 | F52: 0 | G52: 17 | H52: 65 | I52: 70 | J52: AP Individual | K52: 0703 - Plan Normal | L52: 07 - Accidentes Personales | M52: 0 | N52: 0 | O52: 112 | P52: 100 | Q52: 0 | R52: C | S52: Adicional | T52: Cobertura máxima del 10% de la Suma Asegurada en Muerte Accidental
A53: =+Tabla1[[#This Row],[Cobertura]]&Tabla1[[#This Row],[Suma Asegurada Fija]]&Tabla1[[#This Row],[Clasificación Riesgo]] -> Gastos Médicos6000A | B53: Gastos Médicos | C53: 0 | D53: 0 | E53: 6000 | F53: 0 | G53: 17 | H53: 65 | I53: 70 | J53: AP Individual | K53: 0703 - Plan Normal | L53: 07 - Accidentes Personales | M53: 0 | N53: 0 | O53: 58.5 | P53: 100 | Q53: 0 | R53: A | S53: Adicional | T53: Cobertura máxima del 10% de la Suma Asegurada en Muerte Accidental
A54: =+Tabla1[[#This Row],[Cobertura]]&Tabla1[[#This Row],[Suma Asegurada Fija]]&Tabla1[[#This Row],[Clasificación Riesgo]] -> Gastos Médicos6000B | B54: Gastos Médicos | C54: 0 | D54: 0 | E54: 6000 | F54: 0 | G54: 17 | H54: 65 | I54: 70 | J54: AP Individual | K54: 0703 - Plan Normal | L54: 07 - Accidentes Personales | M54: 0 | N54: 0 | O54: 102.6 | P54: 100 | Q54: 0 | R54: B | S54: Adicional | T54: Cobertura máxima del 10% de la Suma Asegurada en Muerte Accidental
A55: =+Tabla1[[#This Row],[Cobertura]]&Tabla1[[#This Row],[Suma Asegurada Fija]]&Tabla1[[#This Row],[Clasificación Riesgo]] -> Gastos Médicos6000C | B55: Gastos Médicos | C55: 0 | D55: 0 | E55: 6000 | F55: 0 | G55: 17 | H55: 65 | I55: 70 | J55: AP Individual | K55: 0703 - Plan Normal | L55: 07 - Accidentes Personales | M55: 0 | N55: 0 | O55: 137.76 | P55: 100 | Q55: 0 | R55: C | S55: Adicional | T55: Cobertura máxima del 10% de la Suma Asegurada en Muerte Accidental
A56: =+Tabla1[[#This Row],[Cobertura]]&Tabla1[[#This Row],[Suma Asegurada Fija]]&Tabla1[[#This Row],[Clasificación Riesgo]] -> Gastos Médicos7000A | B56: Gastos Médicos | C56: 0 | D56: 0 | E56: 7000 | F56: 0 | G56: 17 | H56: 65 | I56: 70 | J56: AP Individual | K56: 0703 - Plan Normal | L56: 07 - Accidentes Personales | M56: 0 | N56: 0 | O56: 68.25 | P56: 100 | Q56: 0 | R56: A | S56: Adicional | T56: Cobertura máxima del 10% de la Suma Asegurada en Muerte Accidental
A57: =+Tabla1[[#This Row],[Cobertura]]&Tabla1[[#This Row],[Suma Asegurada Fija]]&Tabla1[[#This Row],[Clasificación Riesgo]] -> Gastos Médicos7000B | B57: Gastos Médicos | C57: 0 | D57: 0 | E57: 7000 | F57: 0 | G57: 17 | H57: 65 | I57: 70 | J57: AP Individual | K57: 0703 - Plan Normal | L57: 07 - Accidentes Personales | M57: 0 | N57: 0 | O57: 119.7 | P57: 100 | Q57: 0 | R57: B | S57: Adicional | T57: Cobertura máxima del 10% de la Suma Asegurada en Muerte Accidental
A58: =+Tabla1[[#This Row],[Cobertura]]&Tabla1[[#This Row],[Suma Asegurada Fija]]&Tabla1[[#This Row],[Clasificación Riesgo]] -> Gastos Médicos7000C | B58: Gastos Médicos | C58: 0 | D58: 0 | E58: 7000 | F58: 0 | G58: 17 | H58: 65 | I58: 70 | J58: AP Individual | K58: 0703 - Plan Normal | L58: 07 - Accidentes Personales | M58: 0 | N58: 0 | O58: 160.72 | P58: 100 | Q58: 0 | R58: C | S58: Adicional | T58: Cobertura máxima del 10% de la Suma Asegurada en Muerte Accidental
A59: =+Tabla1[[#This Row],[Cobertura]]&Tabla1[[#This Row],[Suma Asegurada Fija]]&Tabla1[[#This Row],[Clasificación Riesgo]] -> Gastos Médicos8000A | B59: Gastos Médicos | C59: 0 | D59: 0 | E59: 8000 | F59: 0 | G59: 17 | H59: 65 | I59: 70 | J59: AP Individual | K59: 0703 - Plan Normal | L59: 07 - Accidentes Personales | M59: 0 | N59: 0 | O59: 78 | P59: 100 | Q59: 0 | R59: A | S59: Adicional | T59: Cobertura máxima del 10% de la Suma Asegurada en Muerte Accidental
A60: =+Tabla1[[#This Row],[Cobertura]]&Tabla1[[#This Row],[Suma Asegurada Fija]]&Tabla1[[#This Row],[Clasificación Riesgo]] -> Gastos Médicos8000B | B60: Gastos Médicos | C60: 0 | D60: 0 | E60: 8000 | F60: 0 | G60: 17 | H60: 65 | I60: 70 | J60: AP Individual | K60: 0703 - Plan Normal | L60: 07 - Accidentes Personales | M60: 0 | N60: 0 | O60: 136.8 | P60: 100 | Q60: 0 | R60: B | S60: Adicional | T60: Cobertura máxima del 10% de la Suma Asegurada en Muerte Accidental
A61: =+Tabla1[[#This Row],[Cobertura]]&Tabla1[[#This Row],[Suma Asegurada Fija]]&Tabla1[[#This Row],[Clasificación Riesgo]] -> Gastos Médicos8000C | B61: Gastos Médicos | C61: 0 | D61: 0 | E61: 8000 | F61: 0 | G61: 17 | H61: 65 | I61: 70 | J61: AP Individual | K61: 0703 - Plan Normal | L61: 07 - Accidentes Personales | M61: 0 | N61: 0 | O61: 183.68 | P61: 100 | Q61: 0 | R61: C | S61: Adicional | T61: Cobertura máxima del 10% de la Suma Asegurada en Muerte Accidental
A62: =+Tabla1[[#This Row],[Cobertura]]&Tabla1[[#This Row],[Suma Asegurada Fija]]&Tabla1[[#This Row],[Clasificación Riesgo]] -> Gastos Médicos9000A | B62: Gastos Médicos | C62: 0 | D62: 0 | E62: 9000 | F62: 0 | G62: 17 | H62: 65 | I62: 70 | J62: AP Individual | K62: 0703 - Plan Normal | L62: 07 - Accidentes Personales | M62: 0 | N62: 0 | O62: 87.75 | P62: 100 | Q62: 0 | R62: A | S62: Adicional | T62: Cobertura máxima del 10% de la Suma Asegurada en Muerte Accidental
A63: =+Tabla1[[#This Row],[Cobertura]]&Tabla1[[#This Row],[Suma Asegurada Fija]]&Tabla1[[#This Row],[Clasificación Riesgo]] -> Gastos Médicos9000B | B63: Gastos Médicos | C63: 0 | D63: 0 | E63: 9000 | F63: 0 | G63: 17 | H63: 65 | I63: 70 | J63: AP Individual | K63: 0703 - Plan Normal | L63: 07 - Accidentes Personales | M63: 0 | N63: 0 | O63: 153.9 | P63: 100 | Q63: 0 | R63: B | S63: Adicional | T63: Cobertura máxima del 10% de la Suma Asegurada en Muerte Accidental
A64: =+Tabla1[[#This Row],[Cobertura]]&Tabla1[[#This Row],[Suma Asegurada Fija]]&Tabla1[[#This Row],[Clasificación Riesgo]] -> Gastos Médicos9000C | B64: Gastos Médicos | C64: 0 | D64: 0 | E64: 9000 | F64: 0 | G64: 17 | H64: 65 | I64: 70 | J64: AP Individual | K64: 0703 - Plan Normal | L64: 07 - Accidentes Personales | M64: 0 | N64: 0 | O64: 206.64 | P64: 100 | Q64: 0 | R64: C | S64: Adicional | T64: Cobertura máxima del 10% de la Suma Asegurada en Muerte Accidental
A65: =+Tabla1[[#This Row],[Cobertura]]&Tabla1[[#This Row],[Suma Asegurada Fija]]&Tabla1[[#This Row],[Clasificación Riesgo]] -> Gastos Médicos10000A | B65: Gastos Médicos | C65: 0 | D65: 0 | E65: 10000 | F65: 0 | G65: 17 | H65: 65 | I65: 70 | J65: AP Individual | K65: 0703 - Plan Normal | L65: 07 - Accidentes Personales | M65: 0 | N65: 0 | O65: 97.5 | P65: 100 | Q65: 0 | R65: A | S65: Adicional | T65: Cobertura máxima del 10% de la Suma Asegurada en Muerte Accidental
A66: =+Tabla1[[#This Row],[Cobertura]]&Tabla1[[#This Row],[Suma Asegurada Fija]]&Tabla1[[#This Row],[Clasificación Riesgo]] -> Gastos Médicos10000B | B66: Gastos Médicos | C66: 0 | D66: 0 | E66: 10000 | F66: 0 | G66: 17 | H66: 65 | I66: 70 | J66: AP Individual | K66: 0703 - Plan Normal | L66: 07 - Accidentes Personales | M66: 0 | N66: 0 | O66: 171 | P66: 100 | Q66: 0 | R66: B | S66: Adicional | T66: Cobertura máxima del 10% de la Suma Asegurada en Muerte Accidental
A67: =+Tabla1[[#This Row],[Cobertura]]&Tabla1[[#This Row],[Suma Asegurada Fija]]&Tabla1[[#This Row],[Clasificación Riesgo]] -> Gastos Médicos10000C | B67: Gastos Médicos | C67: 0 | D67: 0 | E67: 10000 | F67: 0 | G67: 17 | H67: 65 | I67: 70 | J67: AP Individual | K67: 0703 - Plan Normal | L67: 07 - Accidentes Personales | M67: 0 | N67: 0 | O67: 229.6 | P67: 100 | Q67: 0 | R67: C | S67: Adicional | T67: Cobertura máxima del 10% de la Suma Asegurada en Muerte Accidental
A68: =+Tabla1[[#This Row],[Cobertura]]&Tabla1[[#This Row],[Suma Asegurada Fija]]&Tabla1[[#This Row],[Clasificación Riesgo]] -> Gastos Médicos11000A | B68: Gastos Médicos | C68: 0 | D68: 0 | E68: 11000 | F68: 0 | G68: 17 | H68: 65 | I68: 70 | J68: AP Individual | K68: 0703 - Plan Normal | L68: 07 - Accidentes Personales | M68: 0 | N68: 0 | O68: 107.25 | P68: 100 | Q68: 0 | R68: A | S68: Adicional | T68: Cobertura máxima del 10% de la Suma Asegurada en Muerte Accidental
A69: =+Tabla1[[#This Row],[Cobertura]]&Tabla1[[#This Row],[Suma Asegurada Fija]]&Tabla1[[#This Row],[Clasificación Riesgo]] -> Gastos Médicos11000B | B69: Gastos Médicos | C69: 0 | D69: 0 | E69: 11000 | F69: 0 | G69: 17 | H69: 65 | I69: 70 | J69: AP Individual | K69: 0703 - Plan Normal | L69: 07 - Accidentes Personales | M69: 0 | N69: 0 | O69: 188.1 | P69: 100 | Q69: 0 | R69: B | S69: Adicional | T69: Cobertura máxima del 10% de la Suma Asegurada en Muerte Accidental
A70: =+Tabla1[[#This Row],[Cobertura]]&Tabla1[[#This Row],[Suma Asegurada Fija]]&Tabla1[[#This Row],[Clasificación Riesgo]] -> Gastos Médicos11000C | B70: Gastos Médicos | C70: 0 | D70: 0 | E70: 11000 | F70: 0 | G70: 17 | H70: 65 | I70: 70 | J70: AP Individual | K70: 0703 - Plan Normal | L70: 07 - Accidentes Personales | M70: 0 | N70: 0 | O70: 252.56 | P70: 100 | Q70: 0 | R70: C | S70: Adicional | T70: Cobertura máxima del 10% de la Suma Asegurada en Muerte Accidental
A71: =+Tabla1[[#This Row],[Cobertura]]&Tabla1[[#This Row],[Suma Asegurada Fija]]&Tabla1[[#This Row],[Clasificación Riesgo]] -> Gastos Médicos12000A | B71: Gastos Médicos | C71: 0 | D71: 0 | E71: 12000 | F71: 0 | G71: 17 | H71: 65 | I71: 70 | J71: AP Individual | K71: 0703 - Plan Normal | L71: 07 - Accidentes Personales | M71: 0 | N71: 0 | O71: 117 | P71: 100 | Q71: 0 | R71: A | S71: Adicional | T71: Cobertura máxima del 10% de la Suma Asegurada en Muerte Accidental
A72: =+Tabla1[[#This Row],[Cobertura]]&Tabla1[[#This Row],[Suma Asegurada Fija]]&Tabla1[[#This Row],[Clasificación Riesgo]] -> Gastos Médicos12000B | B72: Gastos Médicos | C72: 0 | D72: 0 | E72: 12000 | F72: 0 | G72: 17 | H72: 65 | I72: 70 | J72: AP Individual | K72: 0703 - Plan Normal | L72: 07 - Accidentes Personales | M72: 0 | N72: 0 | O72: 205.2 | P72: 100 | Q72: 0 | R72: B | S72: Adicional | T72: Cobertura máxima del 10% de la Suma Asegurada en Muerte Accidental
A73: =+Tabla1[[#This Row],[Cobertura]]&Tabla1[[#This Row],[Suma Asegurada Fija]]&Tabla1[[#This Row],[Clasificación Riesgo]] -> Gastos Médicos12000C | B73: Gastos Médicos | C73: 0 | D73: 0 | E73: 12000 | F73: 0 | G73: 17 | H73: 65 | I73: 70 | J73: AP Individual | K73: 0703 - Plan Normal | L73: 07 - Accidentes Personales | M73: 0 | N73: 0 | O73: 275.52 | P73: 100 | Q73: 0 | R73: C | S73: Adicional | T73: Cobertura máxima del 10% de la Suma Asegurada en Muerte Accidental
A74: =+Tabla1[[#This Row],[Cobertura]]&Tabla1[[#This Row],[Suma Asegurada Fija]]&Tabla1[[#This Row],[Clasificación Riesgo]] -> Gastos Médicos13000A | B74: Gastos Médicos | C74: 0 | D74: 0 | E74: 13000 | F74: 0 | G74: 17 | H74: 65 | I74: 70 | J74: AP Individual | K74: 0703 - Plan Normal | L74: 07 - Accidentes Personales | M74: 0 | N74: 0 | O74: 126.75 | P74: 100 | Q74: 0 | R74: A | S74: Adicional | T74: Cobertura máxima del 10% de la Suma Asegurada en Muerte Accidental
A75: =+Tabla1[[#This Row],[Cobertura]]&Tabla1[[#This Row],[Suma Asegurada Fija]]&Tabla1[[#This Row],[Clasificación Riesgo]] -> Gastos Médicos13000B | B75: Gastos Médicos | C75: 0 | D75: 0 | E75: 13000 | F75: 0 | G75: 17 | H75: 65 | I75: 70 | J75: AP Individual | K75: 0703 - Plan Normal | L75: 07 - Accidentes Personales | M75: 0 | N75: 0 | O75: 222.3 | P75: 100 | Q75: 0 | R75: B | S75: Adicional | T75: Cobertura máxima del 10% de la Suma Asegurada en Muerte Accidental
A76: =+Tabla1[[#This Row],[Cobertura]]&Tabla1[[#This Row],[Suma Asegurada Fija]]&Tabla1[[#This Row],[Clasificación Riesgo]] -> Gastos Médicos13000C | B76: Gastos Médicos | C76: 0 | D76: 0 | E76: 13000 | F76: 0 | G76: 17 | H76: 65 | I76: 70 | J76: AP Individual | K76: 0703 - Plan Normal | L76: 07 - Accidentes Personales | M76: 0 | N76: 0 | O76: 298.48 | P76: 100 | Q76: 0 | R76: C | S76: Adicional | T76: Cobertura máxima del 10% de la Suma Asegurada en Muerte Accidental
A77: =+Tabla1[[#This Row],[Cobertura]]&Tabla1[[#This Row],[Suma Asegurada Fija]]&Tabla1[[#This Row],[Clasificación Riesgo]] -> Gastos Médicos14000A | B77: Gastos Médicos | C77: 0 | D77: 0 | E77: 14000 | F77: 0 | G77: 17 | H77: 65 | I77: 70 | J77: AP Individual | K77: 0703 - Plan Normal | L77: 07 - Accidentes Personales | M77: 0 | N77: 0 | O77: 136.5 | P77: 100 | Q77: 0 | R77: A | S77: Adicional | T77: Cobertura máxima del 10% de la Suma Asegurada en Muerte Accidental
A78: =+Tabla1[[#This Row],[Cobertura]]&Tabla1[[#This Row],[Suma Asegurada Fija]]&Tabla1[[#This Row],[Clasificación Riesgo]] -> Gastos Médicos14000B | B78: Gastos Médicos | C78: 0 | D78: 0 | E78: 14000 | F78: 0 | G78: 17 | H78: 65 | I78: 70 | J78: AP Individual | K78: 0703 - Plan Normal | L78: 07 - Accidentes Personales | M78: 0 | N78: 0 | O78: 239.4 | P78: 100 | Q78: 0 | R78: B | S78: Adicional | T78: Cobertura máxima del 10% de la Suma Asegurada en Muerte Accidental
A79: =+Tabla1[[#This Row],[Cobertura]]&Tabla1[[#This Row],[Suma Asegurada Fija]]&Tabla1[[#This Row],[Clasificación Riesgo]] -> Gastos Médicos14000C | B79: Gastos Médicos | C79: 0 | D79: 0 | E79: 14000 | F79: 0 | G79: 17 | H79: 65 | I79: 70 | J79: AP Individual | K79: 0703 - Plan Normal | L79: 07 - Accidentes Personales | M79: 0 | N79: 0 | O79: 321.44 | P79: 100 | Q79: 0 | R79: C | S79: Adicional | T79: Cobertura máxima del 10% de la Suma Asegurada en Muerte Accidental
A80: =+Tabla1[[#This Row],[Cobertura]]&Tabla1[[#This Row],[Suma Asegurada Fija]]&Tabla1[[#This Row],[Clasificación Riesgo]] -> Gastos Médicos15000A | B80: Gastos Médicos | C80: 0 | D80: 0 | E80: 15000 | F80: 0 | G80: 17 | H80: 65 | I80: 70 | J80: AP Individual | K80: 0703 - Plan Normal | L80: 07 - Accidentes Personales | M80: 0 | N80: 0 | O80: 146.25 | P80: 100 | Q80: 0 | R80: A | S80: Adicional | T80: Cobertura máxima del 10% de la Suma Asegurada en Muerte Accidental
A81: =+Tabla1[[#This Row],[Cobertura]]&Tabla1[[#This Row],[Suma Asegurada Fija]]&Tabla1[[#This Row],[Clasificación Riesgo]] -> Gastos Médicos15000B | B81: Gastos Médicos | C81: 0 | D81: 0 | E81: 15000 | F81: 0 | G81: 17 | H81: 65 | I81: 70 | J81: AP Individual | K81: 0703 - Plan Normal | L81: 07 - Accidentes Personales | M81: 0 | N81: 0 | O81: 256.5 | P81: 100 | Q81: 0 | R81: B | S81: Adicional | T81: Cobertura máxima del 10% de la Suma Asegurada en Muerte Accidental
A82: =+Tabla1[[#This Row],[Cobertura]]&Tabla1[[#This Row],[Suma Asegurada Fija]]&Tabla1[[#This Row],[Clasificación Riesgo]] -> Gastos Médicos15000C | B82: Gastos Médicos | C82: 0 | D82: 0 | E82: 15000 | F82: 0 | G82: 17 | H82: 65 | I82: 70 | J82: AP Individual | K82: 0703 - Plan Normal | L82: 07 - Accidentes Personales | M82: 0 | N82: 0 | O82: 344.4 | P82: 100 | Q82: 0 | R82: C | S82: Adicional | T82: Cobertura máxima del 10% de la Suma Asegurada en Muerte Accidental
A83: =+Tabla1[[#This Row],[Cobertura]]&Tabla1[[#This Row],[Suma Asegurada Fija]]&Tabla1[[#This Row],[Clasificación Riesgo]] -> Gastos Médicos16000A | B83: Gastos Médicos | C83: 0 | D83: 0 | E83: 16000 | F83: 0 | G83: 17 | H83: 65 | I83: 70 | J83: AP Individual | K83: 0703 - Plan Normal | L83: 07 - Accidentes Personales | M83: 0 | N83: 0 | O83: 156 | P83: 100 | Q83: 0 | R83: A | S83: Adicional | T83: Cobertura máxima del 10% de la Suma Asegurada en Muerte Accidental
A84: =+Tabla1[[#This Row],[Cobertura]]&Tabla1[[#This Row],[Suma Asegurada Fija]]&Tabla1[[#This Row],[Clasificación Riesgo]] -> Gastos Médicos16000B | B84: Gastos Médicos | C84: 0 | D84: 0 | E84: 16000 | F84: 0 | G84: 17 | H84: 65 | I84: 70 | J84: AP Individual | K84: 0703 - Plan Normal | L84: 07 - Accidentes Personales | M84: 0 | N84: 0 | O84: 273.6 | P84: 100 | Q84: 0 | R84: B | S84: Adicional | T84: Cobertura máxima del 10% de la Suma Asegurada en Muerte Accidental
A85: =+Tabla1[[#This Row],[Cobertura]]&Tabla1[[#This Row],[Suma Asegurada Fija]]&Tabla1[[#This Row],[Clasificación Riesgo]] -> Gastos Médicos16000C | B85: Gastos Médicos | C85: 0 | D85: 0 | E85: 16000 | F85: 0 | G85: 17 | H85: 65 | I85: 70 | J85: AP Individual | K85: 0703 - Plan Normal | L85: 07 - Accidentes Personales | M85: 0 | N85: 0 | O85: 367.36 | P85: 100 | Q85: 0 | R85: C | S85: Adicional | T85: Cobertura máxima del 10% de la Suma Asegurada en Muerte Accidental
A86: =+Tabla1[[#This Row],[Cobertura]]&Tabla1[[#This Row],[Suma Asegurada Fija]]&Tabla1[[#This Row],[Clasificación Riesgo]] -> Gastos Médicos17000A | B86: Gastos Médicos | C86: 0 | D86: 0 | E86: 17000 | F86: 0 | G86: 17 | H86: 65 | I86: 70 | J86: AP Individual | K86: 0703 - Plan Normal | L86: 07 - Accidentes Personales | M86: 0 | N86: 0 | O86: 165.75 | P86: 100 | Q86: 0 | R86: A | S86: Adicional | T86: Cobertura máxima del 10% de la Suma Asegurada en Muerte Accidental
A87: =+Tabla1[[#This Row],[Cobertura]]&Tabla1[[#This Row],[Suma Asegurada Fija]]&Tabla1[[#This Row],[Clasificación Riesgo]] -> Gastos Médicos17000B | B87: Gastos Médicos | C87: 0 | D87: 0 | E87: 17000 | F87: 0 | G87: 17 | H87: 65 | I87: 70 | J87: AP Individual | K87: 0703 - Plan Normal | L87: 07 - Accidentes Personales | M87: 0 | N87: 0 | O87: 290.7 | P87: 100 | Q87: 0 | R87: B | S87: Adicional | T87: Cobertura máxima del 10% de la Suma Asegurada en Muerte Accidental
A88: =+Tabla1[[#This Row],[Cobertura]]&Tabla1[[#This Row],[Suma Asegurada Fija]]&Tabla1[[#This Row],[Clasificación Riesgo]] -> Gastos Médicos17000C | B88: Gastos Médicos | C88: 0 | D88: 0 | E88: 17000 | F88: 0 | G88: 17 | H88: 65 | I88: 70 | J88: AP Individual | K88: 0703 - Plan Normal | L88: 07 - Accidentes Personales | M88: 0 | N88: 0 | O88: 390.32 | P88: 100 | Q88: 0 | R88: C | S88: Adicional | T88: Cobertura máxima del 10% de la Suma Asegurada en Muerte Accidental
A89: =+Tabla1[[#This Row],[Cobertura]]&Tabla1[[#This Row],[Suma Asegurada Fija]]&Tabla1[[#This Row],[Clasificación Riesgo]] -> Gastos Médicos18000A | B89: Gastos Médicos | C89: 0 | D89: 0 | E89: 18000 | F89: 0 | G89: 17 | H89: 65 | I89: 70 | J89: AP Individual | K89: 0703 - Plan Normal | L89: 07 - Accidentes Personales | M89: 0 | N89: 0 | O89: 175.5 | P89: 100 | Q89: 0 | R89: A | S89: Adicional | T89: Cobertura máxima del 10% de la Suma Asegurada en Muerte Accidental
A90: =+Tabla1[[#This Row],[Cobertura]]&Tabla1[[#This Row],[Suma Asegurada Fija]]&Tabla1[[#This Row],[Clasificación Riesgo]] -> Gastos Médicos18000B | B90: Gastos Médicos | C90: 0 | D90: 0 | E90: 18000 | F90: 0 | G90: 17 | H90: 65 | I90: 70 | J90: AP Individual | K90: 0703 - Plan Normal | L90: 07 - Accidentes Personales | M90: 0 | N90: 0 | O90: 307.8 | P90: 100 | Q90: 0 | R90: B | S90: Adicional | T90: Cobertura máxima del 10% de la Suma Asegurada en Muerte Accidental
A91: =+Tabla1[[#This Row],[Cobertura]]&Tabla1[[#This Row],[Suma Asegurada Fija]]&Tabla1[[#This Row],[Clasificación Riesgo]] -> Gastos Médicos18000C | B91: Gastos Médicos | C91: 0 | D91: 0 | E91: 18000 | F91: 0 | G91: 17 | H91: 65 | I91: 70 | J91: AP Individual | K91: 0703 - Plan Normal | L91: 07 - Accidentes Personales | M91: 0 | N91: 0 | O91: 413.28 | P91: 100 | Q91: 0 | R91: C | S91: Adicional | T91: Cobertura máxima del 10% de la Suma Asegurada en Muerte Accidental
A92: =+Tabla1[[#This Row],[Cobertura]]&Tabla1[[#This Row],[Suma Asegurada Fija]]&Tabla1[[#This Row],[Clasificación Riesgo]] -> Gastos Médicos19000A | B92: Gastos Médicos | C92: 0 | D92: 0 | E92: 19000 | F92: 0 | G92: 17 | H92: 65 | I92: 70 | J92: AP Individual | K92: 0703 - Plan Normal | L92: 07 - Accidentes Personales | M92: 0 | N92: 0 | O92: 185.25 | P92: 100 | Q92: 0 | R92: A | S92: Adicional | T92: Cobertura máxima del 10% de la Suma Asegurada en Muerte Accidental
A93: =+Tabla1[[#This Row],[Cobertura]]&Tabla1[[#This Row],[Suma Asegurada Fija]]&Tabla1[[#This Row],[Clasificación Riesgo]] -> Gastos Médicos19000B | B93: Gastos Médicos | C93: 0 | D93: 0 | E93: 19000 | F93: 0 | G93: 17 | H93: 65 | I93: 70 | J93: AP Individual | K93: 0703 - Plan Normal | L93: 07 - Accidentes Personales | M93: 0 | N93: 0 | O93: 324.9 | P93: 100 | Q93: 0 | R93: B | S93: Adicional | T93: Cobertura máxima del 10% de la Suma Asegurada en Muerte Accidental
A94: =+Tabla1[[#This Row],[Cobertura]]&Tabla1[[#This Row],[Suma Asegurada Fija]]&Tabla1[[#This Row],[Clasificación Riesgo]] -> Gastos Médicos19000C | B94: Gastos Médicos | C94: 0 | D94: 0 | E94: 19000 | F94: 0 | G94: 17 | H94: 65 | I94: 70 | J94: AP Individual | K94: 0703 - Plan Normal | L94: 07 - Accidentes Personales | M94: 0 | N94: 0 | O94: 436.24 | P94: 100 | Q94: 0 | R94: C | S94: Adicional | T94: Cobertura máxima del 10% de la Suma Asegurada en Muerte Accidental
A95: =+Tabla1[[#This Row],[Cobertura]]&Tabla1[[#This Row],[Suma Asegurada Fija]]&Tabla1[[#This Row],[Clasificación Riesgo]] -> Gastos Médicos20000A | B95: Gastos Médicos | C95: 0 | D95: 0 | E95: 20000 | F95: 0 | G95: 17 | H95: 65 | I95: 70 | J95: AP Individual | K95: 0703 - Plan Normal | L95: 07 - Accidentes Personales | M95: 0 | N95: 0 | O95: 195 | P95: 100 | Q95: 0 | R95: A | S95: Adicional | T95: Cobertura máxima del 10% de la Suma Asegurada en Muerte Accidental
A96: =+Tabla1[[#This Row],[Cobertura]]&Tabla1[[#This Row],[Suma Asegurada Fija]]&Tabla1[[#This Row],[Clasificación Riesgo]] -> Gastos Médicos20000B | B96: Gastos Médicos | C96: 0 | D96: 0 | E96: 20000 | F96: 0 | G96: 17 | H96: 65 | I96: 70 | J96: AP Individual | K96: 0703 - Plan Normal | L96: 07 - Accidentes Personales | M96: 0 | N96: 0 | O96: 342 | P96: 100 | Q96: 0 | R96: B | S96: Adicional | T96: Cobertura máxima del 10% de la Suma Asegurada en Muerte Accidental
A97: =+Tabla1[[#This Row],[Cobertura]]&Tabla1[[#This Row],[Suma Asegurada Fija]]&Tabla1[[#This Row],[Clasificación Riesgo]] -> Gastos Médicos20000C | B97: Gastos Médicos | C97: 0 | D97: 0 | E97: 20000 | F97: 0 | G97: 17 | H97: 65 | I97: 70 | J97: AP Individual | K97: 0703 - Plan Normal | L97: 07 - Accidentes Personales | M97: 0 | N97: 0 | O97: 459.2 | P97: 100 | Q97: 0 | R97: C | S97: Adicional | T97: Cobertura máxima del 10% de la Suma Asegurada en Muerte Accidental
A98: =+Tabla1[[#This Row],[Cobertura]]&Tabla1[[#This Row],[Suma Asegurada Fija]]&Tabla1[[#This Row],[Clasificación Riesgo]] -> Gastos Médicos21000A | B98: Gastos Médicos | C98: 0 | D98: 0 | E98: 21000 | F98: 0 | G98: 17 | H98: 65 | I98: 70 | J98: AP Individual | K98: 0703 - Plan Normal | L98: 07 - Accidentes Personales | M98: 0 | N98: 0 | O98: 204.75 | P98: 100 | Q98: 0 | R98: A | S98: Adicional | T98: Cobertura máxima del 10% de la Suma Asegurada en Muerte Accidental
A99: =+Tabla1[[#This Row],[Cobertura]]&Tabla1[[#This Row],[Suma Asegurada Fija]]&Tabla1[[#This Row],[Clasificación Riesgo]] -> Gastos Médicos21000B | B99: Gastos Médicos | C99: 0 | D99: 0 | E99: 21000 | F99: 0 | G99: 17 | H99: 65 | I99: 70 | J99: AP Individual | K99: 0703 - Plan Normal | L99: 07 - Accidentes Personales | M99: 0 | N99: 0 | O99: 359.1 | P99: 100 | Q99: 0 | R99: B | S99: Adicional | T99: Cobertura máxima del 10% de la Suma Asegurada en Muerte Accidental
A100: =+Tabla1[[#This Row],[Cobertura]]&Tabla1[[#This Row],[Suma Asegurada Fija]]&Tabla1[[#This Row],[Clasificación Riesgo]] -> Gastos Médicos21000C | B100: Gastos Médicos | C100: 0 | D100: 0 | E100: 21000 | F100: 0 | G100: 17 | H100: 65 | I100: 70 | J100: AP Individual | K100: 0703 - Plan Normal | L100: 07 - Accidentes Personales | M100: 0 | N100: 0 | O100: 482.16 | P100: 100 | Q100: 0 | R100: C | S100: Adicional | T100: Cobertura máxima del 10% de la Suma Asegurada en Muerte Accidental
A101: =+Tabla1[[#This Row],[Cobertura]]&Tabla1[[#This Row],[Suma Asegurada Fija]]&Tabla1[[#This Row],[Clasificación Riesgo]] -> Gastos Médicos22000A | B101: Gastos Médicos | C101: 0 | D101: 0 | E101: 22000 | F101: 0 | G101: 17 | H101: 65 | I101: 70 | J101: AP Individual | K101: 0703 - Plan Normal | L101: 07 - Accidentes Personales | M101: 0 | N101: 0 | O101: 214.5 | P101: 100 | Q101: 0 | R101: A | S101: Adicional | T101: Cobertura máxima del 10% de la Suma Asegurada en Muerte Accidental
A102: =+Tabla1[[#This Row],[Cobertura]]&Tabla1[[#This Row],[Suma Asegurada Fija]]&Tabla1[[#This Row],[Clasificación Riesgo]] -> Gastos Médicos22000B | B102: Gastos Médicos | C102: 0 | D102: 0 | E102: 22000 | F102: 0 | G102: 17 | H102: 65 | I102: 70 | J102: AP Individual | K102: 0703 - Plan Normal | L102: 07 - Accidentes Personales | M102: 0 | N102: 0 | O102: 376.2 | P102: 100 | Q102: 0 | R102: B | S102: Adicional | T102: Cobertura máxima del 10% de la Suma Asegurada en Muerte Accidental
A103: =+Tabla1[[#This Row],[Cobertura]]&Tabla1[[#This Row],[Suma Asegurada Fija]]&Tabla1[[#This Row],[Clasificación Riesgo]] -> Gastos Médicos22000C | B103: Gastos Médicos | C103: 0 | D103: 0 | E103: 22000 | F103: 0 | G103: 17 | H103: 65 | I103: 70 | J103: AP Individual | K103: 0703 - Plan Normal | L103: 07 - Accidentes Personales | M103: 0 | N103: 0 | O103: 505.12 | P103: 100 | Q103: 0 | R103: C | S103: Adicional | T103: Cobertura máxima del 10% de la Suma Asegurada en Muerte Accidental
A104: =+Tabla1[[#This Row],[Cobertura]]&Tabla1[[#This Row],[Suma Asegurada Fija]]&Tabla1[[#This Row],[Clasificación Riesgo]] -> Gastos Médicos23000A | B104: Gastos Médicos | C104: 0 | D104: 0 | E104: 23000 | F104: 0 | G104: 17 | H104: 65 | I104: 70 | J104: AP Individual | K104: 0703 - Plan Normal | L104: 07 - Accidentes Personales | M104: 0 | N104: 0 | O104: 224.25 | P104: 100 | Q104: 0 | R104: A | S104: Adicional | T104: Cobertura máxima del 10% de la Suma Asegurada en Muerte Accidental
A105: =+Tabla1[[#This Row],[Cobertura]]&Tabla1[[#This Row],[Suma Asegurada Fija]]&Tabla1[[#This Row],[Clasificación Riesgo]] -> Gastos Médicos23000B | B105: Gastos Médicos | C105: 0 | D105: 0 | E105: 23000 | F105: 0 | G105: 17 | H105: 65 | I105: 70 | J105: AP Individual | K105: 0703 - Plan Normal | L105: 07 - Accidentes Personales | M105: 0 | N105: 0 | O105: 393.3 | P105: 100 | Q105: 0 | R105: B | S105: Adicional | T105: Cobertura máxima del 10% de la Suma Asegurada en Muerte Accidental
A106: =+Tabla1[[#This Row],[Cobertura]]&Tabla1[[#This Row],[Suma Asegurada Fija]]&Tabla1[[#This Row],[Clasificación Riesgo]] -> Gastos Médicos23000C | B106: Gastos Médicos | C106: 0 | D106: 0 | E106: 23000 | F106: 0 | G106: 17 | H106: 65 | I106: 70 | J106: AP Individual | K106: 0703 - Plan Normal | L106: 07 - Accidentes Personales | M106: 0 | N106: 0 | O106: 528.08 | P106: 100 | Q106: 0 | R106: C | S106: Adicional | T106: Cobertura máxima del 10% de la Suma Asegurada en Muerte Accidental
A107: =+Tabla1[[#This Row],[Cobertura]]&Tabla1[[#This Row],[Suma Asegurada Fija]]&Tabla1[[#This Row],[Clasificación Riesgo]] -> Gastos Médicos24000A | B107: Gastos Médicos | C107: 0 | D107: 0 | E107: 24000 | F107: 0 | G107: 17 | H107: 65 | I107: 70 | J107: AP Individual | K107: 0703 - Plan Normal | L107: 07 - Accidentes Personales | M107: 0 | N107: 0 | O107: 234 | P107: 100 | Q107: 0 | R107: A | S107: Adicional | T107: Cobertura máxima del 10% de la Suma Asegurada en Muerte Accidental
A108: =+Tabla1[[#This Row],[Cobertura]]&Tabla1[[#This Row],[Suma Asegurada Fija]]&Tabla1[[#This Row],[Clasificación Riesgo]] -> Gastos Médicos24000B | B108: Gastos Médicos | C108: 0 | D108: 0 | E108: 24000 | F108: 0 | G108: 17 | H108: 65 | I108: 70 | J108: AP Individual | K108: 0703 - Plan Normal | L108: 07 - Accidentes Personales | M108: 0 | N108: 0 | O108: 410.4 | P108: 100 | Q108: 0 | R108: B | S108: Adicional | T108: Cobertura máxima del 10% de la Suma Asegurada en Muerte Accidental
A109: =+Tabla1[[#This Row],[Cobertura]]&Tabla1[[#This Row],[Suma Asegurada Fija]]&Tabla1[[#This Row],[Clasificación Riesgo]] -> Gastos Médicos24000C | B109: Gastos Médicos | C109: 0 | D109: 0 | E109: 24000 | F109: 0 | G109: 17 | H109: 65 | I109: 70 | J109: AP Individual | K109: 0703 - Plan Normal | L109: 07 - Accidentes Personales | M109: 0 | N109: 0 | O109: 551.04 | P109: 100 | Q109: 0 | R109: C | S109: Adicional | T109: Cobertura máxima del 10% de la Suma Asegurada en Muerte Accidental
A110: =+Tabla1[[#This Row],[Cobertura]]&Tabla1[[#This Row],[Suma Asegurada Fija]]&Tabla1[[#This Row],[Clasificación Riesgo]] -> Gastos Médicos25000A | B110: Gastos Médicos | C110: 0 | D110: 0 | E110: 25000 | F110: 0 | G110: 17 | H110: 65 | I110: 70 | J110: AP Individual | K110: 0703 - Plan Normal | L110: 07 - Accidentes Personales | M110: 0 | N110: 0 | O110: 243.75 | P110: 100 | Q110: 0 | R110: A | S110: Adicional | T110: Cobertura máxima del 10% de la Suma Asegurada en Muerte Accidental
A111: =+Tabla1[[#This Row],[Cobertura]]&Tabla1[[#This Row],[Suma Asegurada Fija]]&Tabla1[[#This Row],[Clasificación Riesgo]] -> Gastos Médicos25000B | B111: Gastos Médicos | C111: 0 | D111: 0 | E111: 25000 | F111: 0 | G111: 17 | H111: 65 | I111: 70 | J111: AP Individual | K111: 0703 - Plan Normal | L111: 07 - Accidentes Personales | M111: 0 | N111: 0 | O111: 427.5 | P111: 100 | Q111: 0 | R111: B | S111: Adicional | T111: Cobertura máxima del 10% de la Suma Asegurada en Muerte Accidental
A112: =+Tabla1[[#This Row],[Cobertura]]&Tabla1[[#This Row],[Suma Asegurada Fija]]&Tabla1[[#This Row],[Clasificación Riesgo]] -> Gastos Médicos25000C | B112: Gastos Médicos | C112: 0 | D112: 0 | E112: 25000 | F112: 0 | G112: 17 | H112: 65 | I112: 70 | J112: AP Individual | K112: 0703 - Plan Normal | L112: 07 - Accidentes Personales | M112: 0 | N112: 0 | O112: 574 | P112: 100 | Q112: 0 | R112: C | S112: Adicional | T112: Cobertura máxima del 10% de la Suma Asegurada en Muerte Accidental
A113: =+Tabla1[[#This Row],[Cobertura]]&Tabla1[[#This Row],[Suma Asegurada Fija]]&Tabla1[[#This Row],[Clasificación Riesgo]] -> Gastos Médicos26000A | B113: Gastos Médicos | C113: 0 | D113: 0 | E113: 26000 | F113: 0 | G113: 17 | H113: 65 | I113: 70 | J113: AP Individual | K113: 0703 - Plan Normal | L113: 07 - Accidentes Personales | M113: 0 | N113: 0 | O113: 253.5 | P113: 100 | Q113: 0 | R113: A | S113: Adicional | T113: Cobertura máxima del 10% de la Suma Asegurada en Muerte Accidental
A114: =+Tabla1[[#This Row],[Cobertura]]&Tabla1[[#This Row],[Suma Asegurada Fija]]&Tabla1[[#This Row],[Clasificación Riesgo]] -> Gastos Médicos26000B | B114: Gastos Médicos | C114: 0 | D114: 0 | E114: 26000 | F114: 0 | G114: 17 | H114: 65 | I114: 70 | J114: AP Individual | K114: 0703 - Plan Normal | L114: 07 - Accidentes Personales | M114: 0 | N114: 0 | O114: 444.6 | P114: 100 | Q114: 0 | R114: B | S114: Adicional | T114: Cobertura máxima del 10% de la Suma Asegurada en Muerte Accidental
A115: =+Tabla1[[#This Row],[Cobertura]]&Tabla1[[#This Row],[Suma Asegurada Fija]]&Tabla1[[#This Row],[Clasificación Riesgo]] -> Gastos Médicos26000C | B115: Gastos Médicos | C115: 0 | D115: 0 | E115: 26000 | F115: 0 | G115: 17 | H115: 65 | I115: 70 | J115: AP Individual | K115: 0703 - Plan Normal | L115: 07 - Accidentes Personales | M115: 0 | N115: 0 | O115: 596.96 | P115: 100 | Q115: 0 | R115: C | S115: Adicional | T115: Cobertura máxima del 10% de la Suma Asegurada en Muerte Accidental
A116: =+Tabla1[[#This Row],[Cobertura]]&Tabla1[[#This Row],[Suma Asegurada Fija]]&Tabla1[[#This Row],[Clasificación Riesgo]] -> Gastos Médicos27000A | B116: Gastos Médicos | C116: 0 | D116: 0 | E116: 27000 | F116: 0 | G116: 17 | H116: 65 | I116: 70 | J116: AP Individual | K116: 0703 - Plan Normal | L116: 07 - Accidentes Personales | M116: 0 | N116: 0 | O116: 263.25 | P116: 100 | Q116: 0 | R116: A | S116: Adicional | T116: Cobertura máxima del 10% de la Suma Asegurada en Muerte Accidental
A117: =+Tabla1[[#This Row],[Cobertura]]&Tabla1[[#This Row],[Suma Asegurada Fija]]&Tabla1[[#This Row],[Clasificación Riesgo]] -> Gastos Médicos27000B | B117: Gastos Médicos | C117: 0 | D117: 0 | E117: 27000 | F117: 0 | G117: 17 | H117: 65 | I117: 70 | J117: AP Individual | K117: 0703 - Plan Normal | L117: 07 - Accidentes Personales | M117: 0 | N117: 0 | O117: 461.7 | P117: 100 | Q117: 0 | R117: B | S117: Adicional | T117: Cobertura máxima del 10% de la Suma Asegurada en Muerte Accidental
A118: =+Tabla1[[#This Row],[Cobertura]]&Tabla1[[#This Row],[Suma Asegurada Fija]]&Tabla1[[#This Row],[Clasificación Riesgo]] -> Gastos Médicos27000C | B118: Gastos Médicos | C118: 0 | D118: 0 | E118: 27000 | F118: 0 | G118: 17 | H118: 65 | I118: 70 | J118: AP Individual | K118: 0703 - Plan Normal | L118: 07 - Accidentes Personales | M118: 0 | N118: 0 | O118: 619.92 | P118: 100 | Q118: 0 | R118: C | S118: Adicional | T118: Cobertura máxima del 10% de la Suma Asegurada en Muerte Accidental
A119: =+Tabla1[[#This Row],[Cobertura]]&Tabla1[[#This Row],[Suma Asegurada Fija]]&Tabla1[[#This Row],[Clasificación Riesgo]] -> Gastos Médicos28000A | B119: Gastos Médicos | C119: 0 | D119: 0 | E119: 28000 | F119: 0 | G119: 17 | H119: 65 | I119: 70 | J119: AP Individual | K119: 0703 - Plan Normal | L119: 07 - Accidentes Personales | M119: 0 | N119: 0 | O119: 273 | P119: 100 | Q119: 0 | R119: A | S119: Adicional | T119: Cobertura máxima del 10% de la Suma Asegurada en Muerte Accidental
A120: =+Tabla1[[#This Row],[Cobertura]]&Tabla1[[#This Row],[Suma Asegurada Fija]]&Tabla1[[#This Row],[Clasificación Riesgo]] -> Gastos Médicos28000B | B120: Gastos Médicos | C120: 0 | D120: 0 | E120: 28000 | F120: 0 | G120: 17 | H120: 65 | I120: 70 | J120: AP Individual | K120: 0703 - Plan Normal | L120: 07 - Accidentes Personales | M120: 0 | N120: 0 | O120: 478.8 | P120: 100 | Q120: 0 | R120: B | S120: Adicional | T120: Cobertura máxima del 10% de la Suma Asegurada en Muerte Accidental
A121: =+Tabla1[[#This Row],[Cobertura]]&Tabla1[[#This Row],[Suma Asegurada Fija]]&Tabla1[[#This Row],[Clasificación Riesgo]] -> Gastos Médicos28000C | B121: Gastos Médicos | C121: 0 | D121: 0 | E121: 28000 | F121: 0 | G121: 17 | H121: 65 | I121: 70 | J121: AP Individual | K121: 0703 - Plan Normal | L121: 07 - Accidentes Personales | M121: 0 | N121: 0 | O121: 642.88 | P121: 100 | Q121: 0 | R121: C | S121: Adicional | T121: Cobertura máxima del 10% de la Suma Asegurada en Muerte Accidental
A122: =+Tabla1[[#This Row],[Cobertura]]&Tabla1[[#This Row],[Suma Asegurada Fija]]&Tabla1[[#This Row],[Clasificación Riesgo]] -> Gastos Médicos29000A | B122: Gastos Médicos | C122: 0 | D122: 0 | E122: 29000 | F122: 0 | G122: 17 | H122: 65 | I122: 70 | J122: AP Individual | K122: 0703 - Plan Normal | L122: 07 - Accidentes Personales | M122: 0 | N122: 0 | O122: 282.75 | P122: 100 | Q122: 0 | R122: A | S122: Adicional | T122: Cobertura máxima del 10% de la Suma Asegurada en Muerte Accidental
A123: =+Tabla1[[#This Row],[Cobertura]]&Tabla1[[#This Row],[Suma Asegurada Fija]]&Tabla1[[#This Row],[Clasificación Riesgo]] -> Gastos Médicos29000B | B123: Gastos Médicos | C123: 0 | D123: 0 | E123: 29000 | F123: 0 | G123: 17 | H123: 65 | I123: 70 | J123: AP Individual | K123: 0703 - Plan Normal | L123: 07 - Accidentes Personales | M123: 0 | N123: 0 | O123: 495.9 | P123: 100 | Q123: 0 | R123: B | S123: Adicional | T123: Cobertura máxima del 10% de la Suma Asegurada en Muerte Accidental
A124: =+Tabla1[[#This Row],[Cobertura]]&Tabla1[[#This Row],[Suma Asegurada Fija]]&Tabla1[[#This Row],[Clasificación Riesgo]] -> Gastos Médicos29000C | B124: Gastos Médicos | C124: 0 | D124: 0 | E124: 29000 | F124: 0 | G124: 17 | H124: 65 | I124: 70 | J124: AP Individual | K124: 0703 - Plan Normal | L124: 07 - Accidentes Personales | M124: 0 | N124: 0 | O124: 665.84 | P124: 100 | Q124: 0 | R124: C | S124: Adicional | T124: Cobertura máxima del 10% de la Suma Asegurada en Muerte Accidental
A125: =+Tabla1[[#This Row],[Cobertura]]&Tabla1[[#This Row],[Suma Asegurada Fija]]&Tabla1[[#This Row],[Clasificación Riesgo]] -> Gastos Médicos30000A | B125: Gastos Médicos | C125: 0 | D125: 0 | E125: 30000 | F125: 0 | G125: 17 | H125: 65 | I125: 70 | J125: AP Individual | K125: 0703 - Plan Normal | L125: 07 - Accidentes Personales | M125: 0 | N125: 0 | O125: 292.5 | P125: 100 | Q125: 0 | R125: A | S125: Adicional | T125: Cobertura máxima del 10% de la Suma Asegurada en Muerte Accidental
A126: =+Tabla1[[#This Row],[Cobertura]]&Tabla1[[#This Row],[Suma Asegurada Fija]]&Tabla1[[#This Row],[Clasificación Riesgo]] -> Gastos Médicos30000B | B126: Gastos Médicos | C126: 0 | D126: 0 | E126: 30000 | F126: 0 | G126: 17 | H126: 65 | I126: 70 | J126: AP Individual | K126: 0703 - Plan Normal | L126: 07 - Accidentes Personales | M126: 0 | N126: 0 | O126: 513 | P126: 100 | Q126: 0 | R126: B | S126: Adicional | T126: Cobertura máxima del 10% de la Suma Asegurada en Muerte Accidental
A127: =+Tabla1[[#This Row],[Cobertura]]&Tabla1[[#This Row],[Suma Asegurada Fija]]&Tabla1[[#This Row],[Clasificación Riesgo]] -> Gastos Médicos30000C | B127: Gastos Médicos | C127: 0 | D127: 0 | E127: 30000 | F127: 0 | G127: 17 | H127: 65 | I127: 70 | J127: AP Individual | K127: 0703 - Plan Normal | L127: 07 - Accidentes Personales | M127: 0 | N127: 0 | O127: 688.8 | P127: 100 | Q127: 0 | R127: C | S127: Adicional | T127: Cobertura máxima del 10% de la Suma Asegurada en Muerte Accidental
A128: =+Tabla1[[#This Row],[Cobertura]]&Tabla1[[#This Row],[Suma Asegurada Fija]]&Tabla1[[#This Row],[Clasificación Riesgo]] -> Gastos Médicos0A | B128: Gastos Médicos | C128: 10001 | D128: 30000 | E128: 0 | F128: 0 | G128: 17 | H128: 65 | I128: 70 | J128: AP Individual | K128: 0703 - Plan Normal | L128: 07 - Accidentes Personales | M128: 0 | N128: 9.75 | O128: 0 | P128: 100 | Q128: 30000 | R128: A | S128: Adicional | T128: Cobertura máxima del 10% de la Suma Asegurada en Muerte Accidental
A129: =+Tabla1[[#This Row],[Cobertura]]&Tabla1[[#This Row],[Suma Asegurada Fija]]&Tabla1[[#This Row],[Clasificación Riesgo]] -> Gastos Médicos0B | B129: Gastos Médicos | C129: 10001 | D129: 30000 | E129: 0 | F129: 0 | G129: 17 | H129: 65 | I129: 70 | J129: AP Individual | K129: 0703 - Plan Normal | L129: 07 - Accidentes Personales | M129: 0 | N129: 17.1 | O129: 0 | P129: 100 | Q129: 30000 | R129: B | S129: Adicional | T129: Cobertura máxima del 10% de la Suma Asegurada en Muerte Accidental
A130: =+Tabla1[[#This Row],[Cobertura]]&Tabla1[[#This Row],[Suma Asegurada Fija]]&Tabla1[[#This Row],[Clasificación Riesgo]] -> Gastos Médicos0C | B130: Gastos Médicos | C130: 10001 | D130: 30000 | E130: 0 | F130: 0 | G130: 17 | H130: 65 | I130: 70 | J130: AP Individual | K130: 0703 - Plan Normal | L130: 07 - Accidentes Personales | M130: 0 | N130: 22.96 | O130: 0 | P130: 100 | Q130: 30000 | R130: C | S130: Adicional | T130: Cobertura máxima del 10% de la Suma Asegurada en Muerte Accidental
B131: Muerte Accidental en Avión Privado | C131: 1000 | D131: 100000 | E131: 0 | F131: 0 | G131: 17 | H131: 65 | I131: 70 | J131: AP Individual | K131: 0703 - Plan Normal | L131: 07 - Accidentes Personales | M131: 0 | N131: 0.5 | O131: 0 | P131: 0 | Q131: 100000 | R131: A | S131: Adicional
B132: Muerte Accidental en Avión Privado | C132: 1000 | D132: 100000 | E132: 0 | F132: 0 | G132: 17 | H132: 65 | I132: 70 | J132: AP Individual | K132: 0703 - Plan Normal | L132: 07 - Accidentes Personales | M132: 0 | N132: 0.5 | O132: 0 | P132: 0 | Q132: 100000 | R132: B | S132: Adicional
B133: Muerte Accidental en Avión Privado | C133: 1000 | D133: 100000 | E133: 0 | F133: 0 | G133: 17 | H133: 65 | I133: 70 | J133: AP Individual | K133: 0703 - Plan Normal | L133: 07 - Accidentes Personales | M133: 0 | N133: 0.5 | O133: 0 | P133: 0 | Q133: 100000 | R133: C | S133: Adicional
B134: Muerte en Accidente de Tránsito | C134: 1000 | D134: 100000 | E134: 0 | F134: 0 | G134: 17 | H134: 65 | I134: 70 | J134: AP Individual | K134: 0703 - Plan Normal | L134: 07 - Accidentes Personales | M134: 0 | N134: 0.15 | O134: 0 | P134: 0 | Q134: 100000 | R134: A | S134: Adicional
B135: Muerte en Accidente de Tránsito | C135: 1000 | D135: 100000 | E135: 0 | F135: 0 | G135: 17 | H135: 65 | I135: 70 | J135: AP Individual | K135: 0703 - Plan Normal | L135: 07 - Accidentes Personales | M135: 0 | N135: 0.15 | O135: 0 | P135: 0 | Q135: 100000 | R135: B | S135: Adicional
B136: Muerte en Accidente de Tránsito | C136: 1000 | D136: 100000 | E136: 0 | F136: 0 | G136: 17 | H136: 65 | I136: 70 | J136: AP Individual | K136: 0703 - Plan Normal | L136: 07 - Accidentes Personales | M136: 0 | N136: 0.15 | O136: 0 | P136: 0 | Q136: 100000 | R136: C | S136: Adicional
B137: Muerte como Conductor en Accidente de Tránsito | C137: 1000 | D137: 100000 | E137: 0 | F137: 0 | G137: 18 | H137: 65 | I137: 70 | J137: AP Individual | K137: 0703 - Plan Normal | L137: 07 - Accidentes Personales | M137: 0 | N137: 0.15 | O137: 0 | P137: 0 | Q137: 100000 | R137: A | S137: Adicional
B138: Muerte como Conductor en Accidente de Tránsito | C138: 1000 | D138: 100000 | E138: 0 | F138: 0 | G138: 18 | H138: 65 | I138: 70 | J138: AP Individual | K138: 0703 - Plan Normal | L138: 07 - Accidentes Personales | M138: 0 | N138: 0.15 | O138: 0 | P138: 0 | Q138: 100000 | R138: B | S138: Adicional
B139: Muerte como Conductor en Accidente de Tránsito | C139: 1000 | D139: 100000 | E139: 0 | F139: 0 | G139: 18 | H139: 65 | I139: 70 | J139: AP Individual | K139: 0703 - Plan Normal | L139: 07 - Accidentes Personales | M139: 0 | N139: 0.15 | O139: 0 | P139: 0 | Q139: 100000 | R139: C | S139: Adicional
B140: Muerte en Cajero Automático | C140: 1000 | D140: 100000 | E140: 0 | F140: 0 | G140: 17 | H140: 65 | I140: 70 | J140: AP Individual | K140: 0703 - Plan Normal | L140: 07 - Accidentes Personales | M140: 0 | N140: 0.15 | O140: 0 | P140: 0 | Q140: 100000 | R140: A | S140: Adicional
B141: Muerte en Cajero Automático | C141: 1000 | D141: 100000 | E141: 0 | F141: 0 | G141: 17 | H141: 65 | I141: 70 | J141: AP Individual | K141: 0703 - Plan Normal | L141: 07 - Accidentes Personales | M141: 0 | N141: 0.15 | O141: 0 | P141: 0 | Q141: 100000 | R141: B | S141: Adicional
B142: Muerte en Cajero Automático | C142: 1000 | D142: 100000 | E142: 0 | F142: 0 | G142: 17 | H142: 65 | I142: 70 | J142: AP Individual | K142: 0703 - Plan Normal | L142: 07 - Accidentes Personales | M142: 0 | N142: 0.15 | O142: 0 | P142: 0 | Q142: 100000 | R142: C | S142: Adicional
B143: Renta Diaria por Incapacidad Temporal por Accidente | C143: 1 | D143: 30 | E143: 0 | F143: 0 | G143: 18 | H143: 65 | I143: 70 | J143: AP Individual | K143: 0703 - Plan Normal | L143: 07 - Accidentes Personales | M143: 0 | N143: 2.5 | O143: 0 | P143: 5 días | Q143: 60 días | R143: A | S143: Adicional
B144: Renta Diaria por Incapacidad Temporal por Accidente | C144: 1 | D144: 30 | E144: 0 | F144: 0 | G144: 18 | H144: 65 | I144: 70 | J144: AP Individual | K144: 0703 - Plan Normal | L144: 07 - Accidentes Personales | M144: 0 | N144: 4 | O144: 0 | P144: 5 días | Q144: 60 días | R144: B | S144: Adicional
B145: Renta Diaria por Incapacidad Temporal por Accidente | C145: 1 | D145: 30 | E145: 0 | F145: 0 | G145: 18 | H145: 65 | I145: 70 | J145: AP Individual | K145: 0703 - Plan Normal | L145: 07 - Accidentes Personales | M145: 0 | N145: 6 | O145: 0 | P145: 5 días | Q145: 60 días | R145: C | S145: Adicional
B146: Renta Diaria por Hospitalización por Accidente | C146: 0 | D146: 0 | E146: 25 | F146: 0 | G146: 17 | H146: 65 | I146: 70 | J146: AP Individual | K146: 0703 - Plan Normal | L146: 07 - Accidentes Personales | M146: 0 | N146: 0 | O146: 23 | P146: 3 días | Q146: 60 días | R146: A | S146: Adicional
B147: Renta Diaria por Hospitalización por Accidente | C147: 0 | D147: 0 | E147: 25 | F147: 0 | G147: 17 | H147: 65 | I147: 70 | J147: AP Individual | K147: 0703 - Plan Normal | L147: 07 - Accidentes Personales | M147: 0 | N147: 0 | O147: 23 | P147: 3 días | Q147: 60 días | R147: B | S147: Adicional
B148: Renta Diaria por Hospitalización por Accidente | C148: 0 | D148: 0 | E148: 25 | F148: 0 | G148: 17 | H148: 65 | I148: 70 | J148: AP Individual | K148: 0703 - Plan Normal | L148: 07 - Accidentes Personales | M148: 0 | N148: 0 | O148: 23 | P148: 3 días | Q148: 60 días | R148: C | S148: Adicional
B149: Renta Diaria por Hospitalización por Accidente | C149: 0 | D149: 0 | E149: 50 | F149: 0 | G149: 17 | H149: 65 | I149: 70 | J149: AP Individual | K149: 0703 - Plan Normal | L149: 07 - Accidentes Personales | M149: 0 | N149: 0 | O149: 49 | P149: 3 días | Q149: 60 días | R149: A | S149: Adicional
B150: Renta Diaria por Hospitalización por Accidente | C150: 0 | D150: 0 | E150: 50 | F150: 0 | G150: 17 | H150: 65 | I150: 70 | J150: AP Individual | K150: 0703 - Plan Normal | L150: 07 - Accidentes Personales | M150: 0 | N150: 0 | O150: 49 | P150: 3 días | Q150: 60 días | R150: B | S150: Adicional
B151: Renta Diaria por Hospitalización por Accidente | C151: 0 | D151: 0 | E151: 50 | F151: 0 | G151: 17 | H151: 65 | I151: 70 | J151: AP Individual | K151: 0703 - Plan Normal | L151: 07 - Accidentes Personales | M151: 0 | N151: 0 | O151: 49 | P151: 3 días | Q151: 60 días | R151: C | S151: Adicional
B152: Renta Diaria por Hospitalización por Accidente | C152: 0 | D152: 0 | E152: 100 | F152: 0 | G152: 17 | H152: 65 | I152: 70 | J152: AP Individual | K152: 0703 - Plan Normal | L152: 07 - Accidentes Personales | M152: 0 | N152: 0 | O152: 100 | P152: 3 días | Q152: 60 días | R152: A | S152: Adicional
B153: Renta Diaria por Hospitalización por Accidente | C153: 0 | D153: 0 | E153: 100 | F153: 0 | G153: 17 | H153: 65 | I153: 70 | J153: AP Individual | K153: 0703 - Plan Normal | L153: 07 - Accidentes Personales | M153: 0 | N153: 0 | O153: 100 | P153: 3 días | Q153: 60 días | R153: B | S153: Adicional
B154: Renta Diaria por Hospitalización por Accidente | C154: 0 | D154: 0 | E154: 100 | F154: 0 | G154: 17 | H154: 65 | I154: 70 | J154: AP Individual | K154: 0703 - Plan Normal | L154: 07 - Accidentes Personales | M154: 0 | N154: 0 | O154: 100 | P154: 3 días | Q154: 60 días | R154: C | S154: Adicional
B155: Renta Diaria por Hospitalización en Cuidados Intensivos por Accidente | C155: 0 | D155: 0 | E155: 25 | F155: 0 | G155: 17 | H155: 65 | I155: 70 | J155: AP Individual | K155: 0703 - Plan Normal | L155: 07 - Accidentes Personales | M155: 0 | N155: 0 | O155: 12.5 | P155: 3 días | Q155: 60 días | R155: A | S155: Adicional
B156: Renta Diaria por Hospitalización en Cuidados Intensivos por Accidente | C156: 0 | D156: 0 | E156: 25 | F156: 0 | G156: 17 | H156: 65 | I156: 70 | J156: AP Individual | K156: 0703 - Plan Normal | L156: 07 - Accidentes Personales | M156: 0 | N156: 0 | O156: 12.5 | P156: 3 días | Q156: 60 días | R156: B | S156: Adicional
B157: Renta Diaria por Hospitalización en Cuidados Intensivos por Accidente | C157: 0 | D157: 0 | E157: 25 | F157: 0 | G157: 17 | H157: 65 | I157: 70 | J157: AP Individual | K157: 0703 - Plan Normal | L157: 07 - Accidentes Personales | M157: 0 | N157: 0 | O157: 12.5 | P157: 3 días | Q157: 60 días | R157: C | S157: Adicional
B158: Renta Diaria por Hospitalización en Cuidados Intensivos por Accidente | C158: 0 | D158: 0 | E158: 50 | F158: 0 | G158: 17 | H158: 65 | I158: 70 | J158: AP Individual | K158: 0703 - Plan Normal | L158: 07 - Accidentes Personales | M158: 0 | N158: 0 | O158: 25 | P158: 3 días | Q158: 60 días | R158: A | S158: Adicional
B159: Renta Diaria por Hospitalización en Cuidados Intensivos por Accidente | C159: 0 | D159: 0 | E159: 50 | F159: 0 | G159: 17 | H159: 65 | I159: 70 | J159: AP Individual | K159: 0703 - Plan Normal | L159: 07 - Accidentes Personales | M159: 0 | N159: 0 | O159: 25 | P159: 3 días | Q159: 60 días | R159: B | S159: Adicional
B160: Renta Diaria por Hospitalización en Cuidados Intensivos por Accidente | C160: 0 | D160: 0 | E160: 50 | F160: 0 | G160: 17 | H160: 65 | I160: 70 | J160: AP Individual | K160: 0703 - Plan Normal | L160: 07 - Accidentes Personales | M160: 0 | N160: 0 | O160: 25 | P160: 3 días | Q160: 60 días | R160: C | S160: Adicional
B161: Renta Diaria por Hospitalización en Cuidados Intensivos por Accidente | C161: 0 | D161: 0 | E161: 100 | F161: 0 | G161: 17 | H161: 65 | I161: 70 | J161: AP Individual | K161: 0703 - Plan Normal | L161: 07 - Accidentes Personales | M161: 0 | N161: 0 | O161: 50 | P161: 3 días | Q161: 60 días | R161: A | S161: Adicional
B162: Renta Diaria por Hospitalización en Cuidados Intensivos por Accidente | C162: 0 | D162: 0 | E162: 100 | F162: 0 | G162: 17 | H162: 65 | I162: 70 | J162: AP Individual | K162: 0703 - Plan Normal | L162: 07 - Accidentes Personales | M162: 0 | N162: 0 | O162: 50 | P162: 3 días | Q162: 60 días | R162: B | S162: Adicional
B163: Renta Diaria por Hospitalización en Cuidados Intensivos por Accidente | C163: 0 | D163: 0 | E163: 100 | F163: 0 | G163: 17 | H163: 65 | I163: 70 | J163: AP Individual | K163: 0703 - Plan Normal | L163: 07 - Accidentes Personales | M163: 0 | N163: 0 | O163: 50 | P163: 3 días | Q163: 60 días | R163: C | S163: Adicional
B164: Renta Diaria por Hospitalización ambos cónyuges por Accidente | C164: 0 | D164: 0 | E164: 25 | F164: 0 | G164: 18 | H164: 65 | I164: 70 | J164: AP Individual | K164: 0703 - Plan Normal | L164: 07 - Accidentes Personales | M164: 0 | N164: 0 | O164: 12.5 | P164: 3 días | Q164: 60 días | R164: A | S164: Adicional
B165: Renta Diaria por Hospitalización ambos cónyuges por Accidente | C165: 0 | D165: 0 | E165: 25 | F165: 0 | G165: 18 | H165: 65 | I165: 70 | J165: AP Individual | K165: 0703 - Plan Normal | L165: 07 - Accidentes Personales | M165: 0 | N165: 0 | O165: 12.5 | P165: 3 días | Q165: 60 días | R165: B | S165: Adicional
B166: Renta Diaria por Hospitalización ambos cónyuges por Accidente | C166: 0 | D166: 0 | E166: 25 | F166: 0 | G166: 18 | H166: 65 | I166: 70 | J166: AP Individual | K166: 0703 - Plan Normal | L166: 07 - Accidentes Personales | M166: 0 | N166: 0 | O166: 12.5 | P166: 3 días | Q166: 60 días | R166: C | S166: Adicional
B167: Renta Diaria por Hospitalización ambos cónyuges por Accidente | C167: 0 | D167: 0 | E167: 50 | F167: 0 | G167: 18 | H167: 65 | I167: 70 | J167: AP Individual | K167: 0703 - Plan Normal | L167: 07 - Accidentes Personales | M167: 0 | N167: 0 | O167: 25 | P167: 3 días | Q167: 60 días | R167: A | S167: Adicional
B168: Renta Diaria por Hospitalización ambos cónyuges por Accidente | C168: 0 | D168: 0 | E168: 50 | F168: 0 | G168: 18 | H168: 65 | I168: 70 | J168: AP Individual | K168: 0703 - Plan Normal | L168: 07 - Accidentes Personales | M168: 0 | N168: 0 | O168: 25 | P168: 3 días | Q168: 60 días | R168: B | S168: Adicional
B169: Renta Diaria por Hospitalización ambos cónyuges por Accidente | C169: 0 | D169: 0 | E169: 50 | F169: 0 | G169: 18 | H169: 65 | I169: 70 | J169: AP Individual | K169: 0703 - Plan Normal | L169: 07 - Accidentes Personales | M169: 0 | N169: 0 | O169: 25 | P169: 3 días | Q169: 60 días | R169: C | S169: Adicional
B170: Renta Diaria por Hospitalización ambos cónyuges por Accidente | C170: 0 | D170: 0 | E170: 100 | F170: 0 | G170: 18 | H170: 65 | I170: 70 | J170: AP Individual | K170: 0703 - Plan Normal | L170: 07 - Accidentes Personales | M170: 0 | N170: 0 | O170: 50 | P170: 3 días | Q170: 60 días | R170: A | S170: Adicional
B171: Renta Diaria por Hospitalización ambos cónyuges por Accidente | C171: 0 | D171: 0 | E171: 100 | F171: 0 | G171: 18 | H171: 65 | I171: 70 | J171: AP Individual | K171: 0703 - Plan Normal | L171: 07 - Accidentes Personales | M171: 0 | N171: 0 | O171: 50 | P171: 3 días | Q171: 60 días | R171: B | S171: Adicional
B172: Renta Diaria por Hospitalización ambos cónyuges por Accidente | C172: 0 | D172: 0 | E172: 100 | F172: 0 | G172: 18 | H172: 65 | I172: 70 | J172: AP Individual | K172: 0703 - Plan Normal | L172: 07 - Accidentes Personales | M172: 0 | N172: 0 | O172: 50 | P172: 3 días | Q172: 60 días | R172: C | S172: Adicional
B173: Renta Anual al Cónyuge en caso de muerte accidental | C173: 1000 | D173: 10000 | E173: 0 | F173: 0 | G173: 18 | H173: 65 | I173: 70 | J173: AP Individual | K173: 0703 - Plan Normal | L173: 07 - Accidentes Personales | M173: 0 | N173: 0.5 | O173: 0 | P173: 0 | Q173: 10000 | R173: A | S173: Adicional | T173: Indemnización pagaderá al cónyuge en 5 anualidades mientras viva
B174: Renta Anual al Cónyuge en caso de muerte accidental | C174: 1000 | D174: 10000 | E174: 0 | F174: 0 | G174: 18 | H174: 65 | I174: 70 | J174: AP Individual | K174: 0703 - Plan Normal | L174: 07 - Accidentes Personales | M174: 0 | N174: 0.5 | O174: 0 | P174: 0 | Q174: 10000 | R174: B | S174: Adicional | T174: Indemnización pagaderá al cónyuge en 5 anualidades mientras viva
B175: Renta Anual al Cónyuge en caso de muerte accidental | C175: 1000 | D175: 10000 | E175: 0 | F175: 0 | G175: 18 | H175: 65 | I175: 70 | J175: AP Individual | K175: 0703 - Plan Normal | L175: 07 - Accidentes Personales | M175: 0 | N175: 0.5 | O175: 0 | P175: 0 | Q175: 10000 | R175: C | S175: Adicional | T175: Indemnización pagaderá al cónyuge en 5 anualidades mientras viva
B176: Renta Anual por Escolaridad en caso de muerte accidental | C176: 1000 | D176: 10000 | E176: 0 | F176: 0 | G176: 18 | H176: 65 | I176: 70 | J176: AP Individual | K176: 0703 - Plan Normal | L176: 07 - Accidentes Personales | M176: 0 | N176: 0.25 | O176: 0 | P176: 0 | Q176: 10000 | R176: A | S176: Adicional | T176: Indemnización pagadera a los beneficiarios en 1 anualidad
B177: Renta Anual por Escolaridad en caso de muerte accidental | C177: 1000 | D177: 10000 | E177: 0 | F177: 0 | G177: 18 | H177: 65 | I177: 70 | J177: AP Individual | K177: 0703 - Plan Normal | L177: 07 - Accidentes Personales | M177: 0 | N177: 0.25 | O177: 0 | P177: 0 | Q177: 10000 | R177: B | S177: Adicional | T177: Indemnización pagadera a los beneficiarios en 1 anualidad
B178: Renta Anual por Escolaridad en caso de muerte accidental | C178: 1000 | D178: 10000 | E178: 0 | F178: 0 | G178: 18 | H178: 65 | I178: 70 | J178: AP Individual | K178: 0703 - Plan Normal | L178: 07 - Accidentes Personales | M178: 0 | N178: 0.25 | O178: 0 | P178: 0 | Q178: 10000 | R178: C | S178: Adicional | T178: Indemnización pagadera a los beneficiarios en 1 anualidad
B179: Servicio de Emergencia Odontológica sin Endodoncia | C179: 0 | D179: 0 | E179: 0 | F179: 0 | G179: 2 | H179: 65 | I179: 70 | J179: AP Individual | K179: 0703 - Plan Normal | L179: 07 - Accidentes Personales | M179: 0 | N179: 0 | O179: 4.03 | P179: 0 | Q179: 0 | R179: A | S179: Adicional
B180: Servicio de Emergencia Odontológica Completa | C180: 0 | D180: 0 | E180: 0 | F180: 0 | G180: 2 | H180: 65 | I180: 70 | J180: AP Individual | K180: 0703 - Plan Normal | L180: 07 - Accidentes Personales | M180: 0 | N180: 0 | O180: 4.75 | P180: 0 | Q180: 0 | R180: A | S180: Adicional
B181: Servicio de Emergencia Odontológica sin Endodoncia Familiar | C181: 0 | D181: 0 | E181: 0 | F181: 0 | G181: 2 | H181: 65 | I181: 70 | J181: AP Individual | K181: 0703 - Plan Normal | L181: 07 - Accidentes Personales | M181: 0 | N181: 0 | O181: 14.12 | P181: 0 | Q181: 0 | R181: A | S181: Adicional
B182: Servicio de Emergencia Odontológica Completa Familiar | C182: 0 | D182: 0 | E182: 0 | F182: 0 | G182: 2 | H182: 65 | I182: 70 | J182: AP Individual | K182: 0703 - Plan Normal | L182: 07 - Accidentes Personales | M182: 0 | N182: 0 | O182: 16.61 | P182: 0 | Q182: 0 | R182: A | S182: Adicional
B183: Servicio de Asistencia Médica Móvil | C183: 0 | D183: 0 | E183: 0 | F183: 0 | G183: 2 | H183: 65 | I183: 70 | J183: AP Individual | K183: 0703 - Plan Normal | L183: 07 - Accidentes Personales | M183: 0 | N183: 0 | O183: 1.98 | P183: 0 | Q183: 0 | R183: A | S183: Adicional
B184: Servicio de Orientación Médica | C184: 0 | D184: 0 | E184: 0 | F184: 0 | G184: 2 | H184: 65 | I184: 70 | J184: AP Individual | K184: 0703 - Plan Normal | L184: 07 - Accidentes Personales | M184: 0 | N184: 0 | O184: 6.6 | P184: 0 | Q184: 0 | R184: A | S184: Adicional
B185: Asistencia Funeraria Nacional Individual | C185: 0 | D185: 0 | E185: 0 | F185: 0 | G185: 2 | H185: 65 | I185: 70 | J185: AP Individual | K185: 0703 - Plan Normal | L185: 07 - Accidentes Personales | M185: 0 | N185: 0 | O185: 9.76 | P185: 0 | Q185: 0 | R185: A | S185: Adicional
B186: Asistencia Funeraria Individual con Repatriación | C186: 0 | D186: 0 | E186: 0 | F186: 0 | G186: 2 | H186: 65 | I186: 70 | J186: AP Individual | K186: 0703 - Plan Normal | L186: 07 - Accidentes Personales | M186: 0 | N186: 0 | O186: 14.64 | P186: 0 | Q186: 0 | R186: A | S186: Adicional
B187: Asistencia Funeraria con Expatriación | C187: 0 | D187: 0 | E187: 0 | F187: 0 | G187: 2 | H187: 65 | I187: 70 | J187: AP Individual | K187: 0703 - Plan Normal | L187: 07 - Accidentes Personales | M187: 0 | N187: 0 | O187: 19.74 | P187: 0 | Q187: 0 | R187: A | S187: Adicional
B188: Asistencia Funeraria Nacional Familiar | C188: 0 | D188: 0 | E188: 0 | F188: 0 | G188: 2 | H188: 65 | I188: 70 | J188: AP Individual | K188: 0703 - Plan Normal | L188: 07 - Accidentes Personales | M188: 0 | N188: 0 | O188: 70.98 | P188: 0 | Q188: 0 | R188: A | S188: Adicional
B189: Asistencia Funeraria Nacional Familiar + Progenitores | C189: 0 | D189: 0 | E189: 0 | F189: 0 | G189: 2 | H189: 65 | I189: 70 | J189: AP Individual | K189: 0703 - Plan Normal | L189: 07 - Accidentes Personales | M189: 0 | N189: 0 | O189: 155.05 | P189: 0 | Q189: 0 | R189: A | S189: Adicional
B190: Muerte Accidental | C190: 1000 | D190: 30000 | E190: 0 | F190: 0 | G190: 0 | H190: 0 | I190: 0 | J190: PTA (Asiento) | K190: 0702 - Cobertura PTA | L190: 07 - Accidentes Personales | M190: Pasajero | N190: 1 | O190: 0 | P190: 0 | Q190: 0 | R190: A | S190: Básico
B191: Muerte Accidental | C191: 1000 | D191: 30000 | E191: 0 | F191: 0 | G191: 0 | H191: 0 | I191: 0 | J191: PTA (Asiento) | K191: 0702 - Cobertura PTA | L191: 07 - Accidentes Personales | M191: Conductor | N191: 1.6 | O191: 0 | P191: 0 | Q191: 0 | R191: B | S191: Básico
B192: Muerte Accidental | C192: 1000 | D192: 30000 | E192: 0 | F192: 0 | G192: 0 | H192: 0 | I192: 0 | J192: PTA (Asiento) | K192: 0702 - Cobertura PTA | L192: 07 - Accidentes Personales | M192: Conductor | N192: 2.2 | O192: 0 | P192: 0 | Q192: 0 | R192: C | S192: Básico
B193: Adelanto por Incapacidad Total y Permanente por Accidente | C193: 0 | D193: 0 | E193: Suma Asegurada de Muerte Accidental | F193: 0 | G193: 0 | H193: 0 | I193: 0 | J193: PTA (Asiento) | K193: 0702 - Cobertura PTA | L193: 07 - Accidentes Personales | M193: Pasajero | N193: 0 | O193: 0 | P193: 0 | Q193: 0 | R193: A | S193: Básico | T193: Beneficio incluido en la tarifa de Muerte Accidental / No aplica para menores de edad
B194: Adelanto por Incapacidad Total y Permanente por Accidente | C194: 0 | D194: 0 | E194: Suma Asegurada de Muerte Accidental | F194: 0 | G194: 0 | H194: 0 | I194: 0 | J194: PTA (Asiento) | K194: 0702 - Cobertura PTA | L194: 07 - Accidentes Personales | M194: Conductor | N194: 0 | O194: 0 | P194: 0 | Q194: 0 | R194: B | S194: Básico | T194: Beneficio incluido en la tarifa de Muerte Accidental / No aplica para menores de edad
B195: Adelanto por Incapacidad Total y Permanente por Accidente | C195: 0 | D195: 0 | E195: Suma Asegurada de Muerte Accidental | F195: 0 | G195: 0 | H195: 0 | I195: 0 | J195: PTA (Asiento) | K195: 0702 - Cobertura PTA | L195: 07 - Accidentes Personales | M195: Conductor | N195: 0 | O195: 0 | P195: 0 | Q195: 0 | R195: C | S195: Básico | T195: Beneficio incluido en la tarifa de Muerte Accidental / No aplica para menores de edad
B196: Adelanto por Desmembramiento por Accidente | C196: 0 | D196: 0 | E196: Suma Asegurada de Muerte Accidental | F196: 0 | G196: 0 | H196: 0 | I196: 0 | J196: PTA (Asiento) | K196: 0702 - Cobertura PTA | L196: 07 - Accidentes Personales | M196: Pasajero | N196: 0 | O196: 0 | P196: 0 | Q196: 0 | R196: A | S196: Básico | T196: Beneficio incluido en la tarifa de Muerte Accidental
B197: Adelanto por Desmembramiento por Accidente | C197: 0 | D197: 0 | E197: Suma Asegurada de Muerte Accidental | F197: 0 | G197: 0 | H197: 0 | I197: 0 | J197: PTA (Asiento) | K197: 0702 - Cobertura PTA | L197: 07 - Accidentes Personales | M197: Conductor | N197: 0 | O197: 0 | P197: 0 | Q197: 0 | R197: B | S197: Básico | T197: Beneficio incluido en la tarifa de Muerte Accidental
B198: Adelanto por Desmembramiento por Accidente | C198: 0 | D198: 0 | E198: Suma Asegurada de Muerte Accidental | F198: 0 | G198: 0 | H198: 0 | I198: 0 | J198: PTA (Asiento) | K198: 0702 - Cobertura PTA | L198: 07 - Accidentes Personales | M198: Conductor | N198: 0 | O198: 0 | P198: 0 | Q198: 0 | R198: C | S198: Básico | T198: Beneficio incluido en la tarifa de Muerte Accidental
A199: =Tabla1[[#This Row],[Rol]]&Tabla1[[#This Row],[Cobertura]]&Tabla1[[#This Row],[Suma Asegurada Fija]] -> PasajeroGastos Médicos500 | B199: Gastos Médicos | C199: 0 | D199: 0 | E199: 500 | F199: 0 | G199: 0 | H199: 0 | I199: 0 | J199: PTA (Asiento) | K199: 0702 - Cobertura PTA | L199: 07 - Accidentes Personales | M199: Pasajero | N199: 0 | O199: 8.2 | P199: 25 | Q199: 0 | R199: A | S199: Adicional | T199: Cobertura máxima del 10% de la Suma Asegurada en Muerte Accidental
A200: =Tabla1[[#This Row],[Rol]]&Tabla1[[#This Row],[Cobertura]]&Tabla1[[#This Row],[Suma Asegurada Fija]] -> ConductorGastos Médicos500 | B200: Gastos Médicos | C200: 0 | D200: 0 | E200: 500 | F200: 0 | G200: 0 | H200: 0 | I200: 0 | J200: PTA (Asiento) | K200: 0702 - Cobertura PTA | L200: 07 - Accidentes Personales | M200: Conductor | N200: 0 | O200: 12 | P200: 25 | Q200: 0 | R200: B | S200: Adicional | T200: Cobertura máxima del 10% de la Suma Asegurada en Muerte Accidental
... 532 more rows

Sheet Calculador (hidden)
B2: AP Individual | L2: Colectivo de AP | V2: PTA (Asiento) | AE2: Crucero
B3: Datos | L3: Datos | V3: Datos | AE3: Datos
B4: Días de Cobertura: | D4: =+'AP Individual'!C10 -> 365 | L4: Edad Promedio: | N4: =+'AP Colectivo'!C10 -> 40 | V4: Edad Promedio: | X4: =+'AP Colectivo'!M10 -> 0 | AE4: Edad: | AG4: =+Crucero!C10 -> 25 | AH4: =+IF(AND(AG4>=17,AG4<60),17,IF(AND(AG4>=61,AG4<70),61,IF(AND(Calculador!AG4>=71,Calculador!AG4<75),71,""))) -> 17
B5: Edad: | D5: =+'AP Individual'!C12 -> 20 | L5: Clasificación: | N5: =+'AP Colectivo'!C12 -> B | V5: Clasificación: | X5: =+'AP Colectivo'!M12 -> 0 | AE5: Días de Cobertura | AG5: =+Crucero!C12 -> 3
B6: Clasificación: | D6: =+'AP Individual'!C14 -> C | L6: Cantidad de Asegurados: | N6: =+'AP Colectivo'!C14 -> 50 | P6: Días de Cobertura: | R6: =+'AP Colectivo'!G14 -> 365 | V6: Cantidad de Asegurados: | X6: =+'AP Colectivo'!M14 -> 0 | Z6: Días de Cobertura: | AB6: =+'AP Colectivo'!Q14 -> 0
B8: Muerte Accidental | I8: =+VLOOKUP(J8,'Coberturas AP - CV'!$A$2:$N$1048576,14,FALSE) -> 2.2 | J8: =+B2&B8&IF(AND(D5>0,D5<61),17,IF(AND(D5>60,D5<71),61,71))&$D$6 -> AP IndividualMuerte Accidental17C | L8: Muerte Accidental | Q8: =+VLOOKUP(R8,'Coberturas AP - CV'!$A$220:$N$228,14,FALSE) -> 1.6 | R8: =+L2&L8&IF(AND(N4>0,N4<61),17,IF(AND(N4>60,N4<71),61,71))&N5 -> Colectivo de APMuerte Accidental17B | V8: Muerte Accidental | AA8: =+'Coberturas AP - CV'!$N$190 -> 1 | AE8: Muerte Accidental | AJ8: =+VLOOKUP(AK8,'Coberturas AP - CV'!$A$372:$O$404,14,FALSE) -> 1 | AK8: =+AE2&AE8&AH4 -> CruceroMuerte Accidental17
B9: Beneficio de Homicidio Doloso | I9: =IF(OR(D6="A",D6="B"),0.25,0.3) -> 0.3 | L9: Beneficio de Homicidio Doloso | Q9: =IF(OR(N5="A",N5="B"),0.25,0.3) -> 0.25 | V9: Gastos Médicos por Accidente | AA9: =+VLOOKUP(AB9,'Coberturas AP - CV'!A199:O214,15,FALSE) ->  | AB9: ='Coberturas AP - CV'!M199&'Coberturas AP - CV'!B199&'AP PTA (Asiento)'!F19 -> PasajeroGastos Médicos0 | AE9: Gastos Médicos por Accidente | AJ9: =+VLOOKUP(AK9,'Coberturas AP - CV'!$A$372:$O$404,15,FALSE) ->  | AK9: =+AE2&'Coberturas AP - CV'!B377&Crucero!F19 -> CruceroGastos Médicos
B10: Gastos Médicos por Accidente | I10: =VLOOKUP('Coberturas AP - CV'!$B$29&'AP Individual'!$H$25&Calculador!$D$6,'Coberturas AP - CV'!$A$2:$S$130,15,FALSE) ->  | L10: Muerte en Transporte Público | Q10: =+VLOOKUP(R10,'Coberturas AP - CV'!A232:N234,14,FALSE) -> 0.32 | R10: =+L10&N5 -> Muerte en Transporte PúblicoB | V10: Renta Diaria por Incapacidad Temporal por Accidente | AA10: =+'Coberturas AP - CV'!$N$217 -> 2.5
B11: Muerte Accidental en Avión Privado | I11: 0.5 | L11: Gastos Médicos por Accidente | Q11: =+VLOOKUP(R11,'Coberturas AP - CV'!$A$247:$O$348,15,FALSE) ->  | R11: =+'Coberturas AP - CV'!B247&'AP Colectivo'!$F$25&Calculador!N5 -> Gastos MédicosB
B12: Muerte en Accidente de Tránsito | I12: 0.15 | L12: Renta Diaria por Incapacidad Temporal por Accidente | Q12: =+VLOOKUP(R12,'Coberturas AP - CV'!A349:N351,14,FALSE) -> 4 | R12: =+L12&N5 -> Renta Diaria por Incapacidad Temporal por AccidenteB | V12: Muerte Accidental | AA12: =+'Coberturas AP - CV'!$N$191 -> 1.6 | AB12: =+V12&X5 -> Muerte Accidental0
B13: Muerte como Conductor en Accidente de Tránsito | I13: 0.15 | L13: Renta Diaria por Hospitalización por Accidente | Q13: =+VLOOKUP(R13,'Coberturas AP - CV'!$A$352:$O$360,15,FALSE) ->  | R13: =+L13&'AP Colectivo'!$F$27&Calculador!$N$5 -> Renta Diaria por Hospitalización por AccidenteB | V13: Gastos Médicos por Accidente | AA13: =+VLOOKUP(AB13,'Coberturas AP - CV'!A200:O216,15,FALSE) ->  | AB13: ='Coberturas AP - CV'!$M$200&'Coberturas AP - CV'!B200&'AP PTA (Asiento)'!F31 -> ConductorGastos Médicos0
B14: Muerte en Cajero Automático | I14: 0.15 | L14: Servicio de Asistencia Médica Móvil | Q14: 1.98 | V14: Renta Diaria por Incapacidad Temporal por Accidente | AA14: =+'Coberturas AP - CV'!$N$218 -> 4
B15: Renta Diaria por Incapacidad Temporal por Accidente | I15: =+IF(D6="A",2.5,IF(D6="B",4,6)) -> 6 | L15: Servicio de Orientación Médica | Q15: 6.6
B16: Renta Diaria por Hospitalización por Accidente | I16: =+IF(J16=25,23,IF(J16=50,49,IF(J16=100,100))) -> FALSE | J16: =+'AP Individual'!H31 -> 0 | L16: =+'AP Colectivo'!A30 -> Servicio de Emergencia Odontológica Completa Familiar | Q16: =+VLOOKUP(L16,'Coberturas AP - CV'!$B$361:$O$364,14,FALSE) -> 16.61
B17: Renta Diaria por Hospitalización en Cuidados Intensivos por Accidente | I17: =+IF(J17=25,12.5,IF(J17=50,25,IF(J17=100,50))) -> FALSE | J17: =+'AP Individual'!H32 -> 0 | L17: =+'AP Colectivo'!A31 -> Asistencia Funeraria Nacional Familiar | Q17: =+VLOOKUP(L17,'Coberturas AP - CV'!$B$367:$O$371,14,FALSE) -> 70.98
B18: Renta Diaria por Hospitalización ambos cónyuges por Accidente | I18: =+IF(J18=25,12.5,IF(J18=50,25,IF(J18=100,50))) -> FALSE | J18: =+'AP Individual'!H33 -> 0
B19: Renta Anual al cónyuge en caso de Muerte Accidental | I19: 0.5
B20: Renta Anual por escolaridad en caso de Muerte Accidental | I20: 0.25
B21: Servicio de Asistencia Médica Móvil | I21: 1.98
B22: Servicio de Orientación Médica | I22: 6.6
B23: =+'AP Individual'!A38 -> Servicio de Emergencia Odontológica Completa Familiar | I23: =+VLOOKUP(B23,'Coberturas AP - CV'!$B$1:$T$733,14,FALSE) -> 16.61
B24: =+'AP Individual'!A39 -> Asistencia Funeraria Nacional Familiar | I24: =+VLOOKUP(B24,'Coberturas AP - CV'!$B$1:$T$733,14,FALSE) -> 70.98
B29: Escolar | L29: Viajero | V29: Colectivo de Vida
V30: Datos
B31: Muerte Accidental | G31: =+'Coberturas AP - CV'!$N$405 -> 0.55 | L31: Edad | Q31: =+'AP Viajero'!C10 -> 30
B32: Desmembramiento por Accidente | G32: =+'Coberturas AP - CV'!$N$407 -> 0.45 | H32: ='Coberturas AP - CV'!#REF!&'Coberturas AP - CV'!#REF!&'AP PTA (Asiento)'!#REF! ->  | L32: rango de edad | Q32: =+IF(AND(Q31>=2,Q31<18),2,IF(AND(Q31>=18,Q31<66),18,IF(AND(Calculador!Q31>=66,Calculador!Q31<76),66,""))) -> 18 | V32: Edad Promedio: | X32: =+'Colectivo de Vida'!C10 -> 40
B33: Gastos Médicos por Accidente | G33: =+VLOOKUP(H33,'Coberturas AP - CV'!A408:O418,15,FALSE) -> 8.2 | H33: =+Calculador!B29&'Coberturas AP - CV'!$B$408&'AP Escolar'!$F$19 -> EscolarGastos Médicos500 | L33: Concatenado | Q33: ='AP Viajero'!G10&'AP Viajero'!C12&Calculador!Q32 -> 150000518 | V33: Clasificación: | X33: =+'Colectivo de Vida'!C12 -> C
B34: Servicio de Asistencia Médica Móvil | G34: =+'Coberturas AP - CV'!$O$419 -> 1.98 | L34: Prima | Q34: =+VLOOKUP(Q33,'Coberturas AP - CV'!$A$420:$O$482,15,FALSE) -> 9.16
V35: Muerte por Cualquier Causa | AC35: =+VLOOKUP(X32,'CSG1960'!$A$3:$D$48,3,FALSE)/(1-'Colectivo de Vida'!$E$37) -> 3.35
V36: Muerte Accidental | AC36: =+VLOOKUP(AD36,'Coberturas AP - CV'!$A$483:$N$494,14,FALSE) -> 1.54 | AD36: =+$V$29&V36&$X$33 -> Colectivo de VidaMuerte AccidentalC
V37: Adelanto por Incapacidad Total y Permanente por Accidente | AC37: =+VLOOKUP(AD37,'Coberturas AP - CV'!$A$483:$N$494,14,FALSE) -> 1.26 | AD37: Colectivo de VidaAdelanto por Incapacidad Total y Permanente por AccidenteC
B38: Colectivo de Saldo Deudores | V38: Adelanto del Básico por Cancer | AC38: =+'Coberturas AP - CV'!$N$489 -> 0.42 | AD38: Colectivo de VidaAdelanto del Básico por CancerC
B39: Datos | V39: Pago Adicional por Cancer | AC39: =+'Coberturas AP - CV'!$N$492 -> 2.76 | AD39: Colectivo de VidaPago Adicional por CancerC
V40: Muerte en Transporte Público | AC40: =+VLOOKUP(AD40,'Coberturas AP - CV'!$A$483:$O$643,14,FALSE) -> 0.77 | AD40: =+$V$29&V40&$X$33 -> Colectivo de VidaMuerte en Transporte PúblicoC
B41: Edad Promedio: | D41: =+'Saldo Deudor'!C10 -> 30 | V41: Muerte Natural Cónyuge | AC41: =+VLOOKUP(AD41,'Coberturas AP - CV'!$A$483:$O$643,14,FALSE) -> 0.25 | AD41: =+$V$29&V41&$X$33 -> Colectivo de VidaMuerte Natural CónyugeC
B42: Clasificación: | D42: =+'Saldo Deudor'!C12 -> A | V42: Muerte Natural Hijos | AC42: =+VLOOKUP(AD42,'Coberturas AP - CV'!$A$483:$O$643,14,FALSE) -> 0.2 | AD42: =+$V$29&V42&$X$33 -> Colectivo de VidaMuerte Natural HijosC
V43: Gastos Médicos por Accidente | AC43: =+VLOOKUP(AD43,'Coberturas AP - CV'!$A$483:$O$643,15,FALSE) ->  | AD43: =+V29&'Coberturas AP - CV'!$B$513&'Colectivo de Vida'!$G$29&$X$33 -> Colectivo de VidaGastos MédicosC
B44: Muerte por Cualquier Causa | I44: =+VLOOKUP(D41,'CSG1960'!$A$3:$D$48,3,FALSE)/(1-'Saldo Deudor'!C30) -> 2 | V44: Renta Diaria por Hospitalización por Accidente | AC44: =+VLOOKUP(AD44,'Coberturas AP - CV'!$A$483:$O$643,15,FALSE) ->  | AD44: =+$V$29&$V$44&'Colectivo de Vida'!G30 -> Colectivo de VidaRenta Diaria por Hospitalización por Accidente
V45: Renta Diaria por Incapacidad Temporal por Accidente | AC45: =+VLOOKUP(AD45,'Coberturas AP - CV'!$A$483:$O$643,14,FALSE) -> 6 | AD45: =+$V$29&$V$45&X33 -> Colectivo de VidaRenta Diaria por Incapacidad Temporal por AccidenteC
B46: Muerte Accidental | I46: =+VLOOKUP(J46,'Coberturas AP - CV'!$A$644:$O$727,14,FALSE) -> 0.72 | J46: =+$B$38&B46&$D$42 -> Colectivo de Saldo DeudoresMuerte AccidentalA | V46: Servicio de Asistencia Médica Móvil | AC46: =+'Coberturas AP - CV'!$O$637 -> 1.98
B47: Adelanto por Incapacidad Total y Permanente por Accidente | I47: =+VLOOKUP(J47,'Coberturas AP - CV'!$A$644:$O$727,14,FALSE) -> 0.84 | J47: =+$B$38&B47&$D$42 -> Colectivo de Saldo DeudoresAdelanto por Incapacidad Total y Permanente por AccidenteA | V47: Servicio de Orientación Médica | AC47: =+'Coberturas AP - CV'!O638 -> 6.6
B48: Adelanto del Básico por Cancer | I48: =+VLOOKUP(J48,'Coberturas AP - CV'!$A$644:$O$727,14,FALSE) -> 0.42 | J48: Colectivo de Saldo DeudoresAdelanto del Básico por CancerA | V48: =+'Colectivo de Vida'!A34 -> Servicio de Emergencia Odontológica sin Endodoncia | AC48: =+VLOOKUP(V48,'Coberturas AP - CV'!$B$627:$O$643,14,FALSE) -> 8.07
B49: Pago Adicional por Cancer | I49: =+VLOOKUP(J49,'Coberturas AP - CV'!$A$644:$O$727,14,FALSE) -> 2.76 | J49: Colectivo de Saldo DeudoresPago Adicional por CancerA | V49: =+'Colectivo de Vida'!A35 -> Asistencia Funeraria Nacional Individual | AC49: =+VLOOKUP(V49,'Coberturas AP - CV'!$B$627:$O$643,14,FALSE) -> 9.76
B50: Pago Adicional por Gastos Funerarios | I50: =+VLOOKUP(J50,'Coberturas AP - CV'!$A$644:$O$727,14,FALSE) -> 0 | J50: Colectivo de Saldo DeudoresPago Adicional por Gastos FunerariosA
B51: Muerte en Transporte Público | I51: =+VLOOKUP(J51,'Coberturas AP - CV'!$A$644:$O$727,14,FALSE) -> 0.36 | J51: Colectivo de Saldo DeudoresMuerte en Transporte PúblicoA
B52: Muerte Natural Cónyuge | I52: =+VLOOKUP(J52,'Coberturas AP - CV'!$A$644:$O$727,14,FALSE) -> 0.15 | J52: Colectivo de Saldo DeudoresMuerte Natural CónyugeA
B53: Muerte Natural Hijos | I53: =+VLOOKUP(J53,'Coberturas AP - CV'!$A$644:$O$727,14,FALSE) -> 0.1 | J53: Colectivo de Saldo DeudoresMuerte Natural HijosA
B54: Adelanto por Enfermedades Graves | I54: =+VLOOKUP(J54,'Coberturas AP - CV'!$A$644:$O$727,14,FALSE) -> 0.21 | J54: Colectivo de Saldo DeudoresAdelanto por Enfermedades GravesA

Sheet CSG1960 (hidden)
A1: TABLA CSG 1960 AL 50%
A2: Edad | B2: Tasa Anual al 100% | C2: Tasa Anual al 50% | D2: Tasa Mensual al 50%
A3: 20 | B3: 2.09 | C3: 1.045 | D3: 0.08708333333
A4: 21 | B4: 2.14 | C4: 1.07 | D4: 0.08916666667
A5: 22 | B5: 2.18 | C5: 1.09 | D5: 0.09083333333
A6: 23 | B6: 2.21 | C6: 1.105 | D6: 0.09208333333
A7: 24 | B7: 2.24 | C7: 1.12 | D7: 0.09333333333
A8: 25 | B8: 2.26 | C8: 1.13 | D8: 0.09416666667
A9: 26 | B9: 2.28 | C9: 1.14 | D9: 0.095
A10: 27 | B10: 2.3 | C10: 1.15 | D10: 0.09583333333
A11: 28 | B11: 2.33 | C11: 1.165 | D11: 0.09708333333
A12: 29 | B12: 2.36 | C12: 1.18 | D12: 0.09833333333
A13: 30 | B13: 2.4 | C13: 1.2 | D13: 0.1
A14: 31 | B14: 2.45 | C14: 1.225 | D14: 0.1020833333
A15: 32 | B15: 2.51 | C15: 1.255 | D15: 0.1045833333
A16: 33 | B16: 2.6 | C16: 1.3 | D16: 0.1083333333
A17: 34 | B17: 2.71 | C17: 1.355 | D17: 0.1129166667
A18: 35 | B18: 2.85 | C18: 1.425 | D18: 0.11875
A19: 36 | B19: 3.02 | C19: 1.51 | D19: 0.1258333333
A20: 37 | B20: 3.21 | C20: 1.605 | D20: 0.13375
A21: 38 | B21: 3.45 | C21: 1.725 | D21: 0.14375
A22: 39 | B22: 3.72 | C22: 1.86 | D22: 0.155
A23: 40 | B23: 4.02 | C23: 2.01 | D23: 0.1675
A24: 41 | B24: 4.37 | C24: 2.185 | D24: 0.1820833333
A25: 42 | B25: 4.75 | C25: 2.375 | D25: 0.1979166667
A26: 43 | B26: 5.18 | C26: 2.59 | D26: 0.2158333333
A27: 44 | B27: 5.64 | C27: 2.82 | D27: 0.235
A28: 45 | B28: 6.15 | C28: 3.075 | D28: 0.25625
A29: 46 | B29: 6.7 | C29: 3.35 | D29: 0.2791666667
A30: 47 | B30: 7.31 | C30: 3.655 | D30: 0.3045833333
A31: 48 | B31: 7.98 | C31: 3.99 | D31: 0.3325
A32: 49 | B32: 8.72 | C32: 4.36 | D32: 0.3633333333
A33: 50 | B33: 9.52 | C33: 4.76 | D33: 0.3966666667
A34: 51 | B34: 10.4 | C34: 5.2 | D34: 0.4333333333
A35: 52 | B35: 11.37 | C35: 5.685 | D35: 0.47375
A36: 53 | B36: 12.44 | C36: 6.22 | D36: 0.5183333333
A37: 54 | B37: 13.61 | C37: 6.805 | D37: 0.5670833333
A38: 55 | B38: 14.88 | C38: 7.44 | D38: 0.62
A39: 56 | B39: 16.24 | C39: 8.12 | D39: 0.6766666667
A40: 57 | B40: 17.7 | C40: 8.85 | D40: 0.7375
A41: 58 | B41: 19.24 | C41: 9.62 | D41: 0.8016666667
A42: 59 | B42: 20.87 | C42: 10.435 | D42: 0.8695833333
A43: 60 | B43: 22.62 | C43: 11.31 | D43: 0.9425
A44: 61 | B44: 24.51 | C44: 12.255 | D44: 1.02125
A45: 62 | B45: 26.6 | C45: 13.3 | D45: 1.108333333
A46: 63 | B46: 28.86 | C46: 14.43 | D46: 1.2025
A47: 64 | B47: 31.31 | C47: 15.655 | D47: 1.304583333
A48: 65 | B48: 34 | C48: 17 | D48: 1.416666667
